Workbook

Sheet Instructions

Sheet 3PGpjs2.7_Parameters
B2: Standard 3PG parameters (3PGpjs vsn 2.7, 3-PG vsn 1, September 2010)
B3: Do NOT change the format of this block. You can edit values in the
B4: value columns, or add columns of values to the right for additional species.
B6: Meaning/comments | C6: Name | D6: Units | E6: Trial
B7: Biomass partitioning and turnover
B8: Allometric relationships & partitioning
B9: Foliage:stem partitioning ratio @ D=2 cm | C9: pFS2 | D9: - | E9: 1
B10: Foliage:stem partitioning ratio @ D=20 cm | C10: pFS20 | D10: - | E10: 0.15
B11: Constant in the stem mass v. diam. relationship | C11: aS | D11: - | E11: 0.095
B12: Power in the stem mass v. diam. relationship | C12: nS | D12: - | E12: 2.4
B13: Maximum fraction of NPP to roots | C13: pRx | D13: - | E13: 0.8
B14: Minimum fraction of NPP to roots | C14: pRn | D14: - | E14: 0.25
B15: Litterfall & root turnover
B16: Maximum litterfall rate | C16: gammaFx | D16: 1/month | E16: 0.03
B17: Litterfall rate at t = 0 | C17: gammaF0 | D17: 1/month | E17: 0.001
B18: Age at which litterfall rate has median value | C18: tgammaF | D18: months | E18: 12
B19: Average monthly root turnover rate | C19: gammaR | D19: 1/month | E19: 0.015
B20: NPP & conductance modifiers
B21: Temperature modifier (fT)
B22: Minimum temperature for growth | C22: Tmin | D22: deg. C | E22: -999
B23: Optimum temperature for growth | C23: Topt | D23: deg. C | E23: 25
B24: Maximum temperature for growth | C24: Tmax | D24: deg. C | E24: 999
B25: Frost modifier (fFRost)
B26: Days production lost per frost day | C26: kF | D26: days | E26: 1
B27: Soil water modifier (fSW)
B28: Moisture ratio deficit for fq = 0.5 | C28: SWconst | D28: - | E28: 0.7
B29: Power of moisture ratio deficit | C29: SWpower | D29: - | E29: 9
B30: Atmospheric CO2 modifier (fCO2)
B31: Assimialtion enhancement factor at 700 ppm | C31: fCalpha700 | D31: - | E31: 1.4
B32: Canopy conductance enhancement factor at 700 ppm | C32: fCg700 | D32: - | E32: 0.7
B33: Fertitlity effects
B34: Value of 'm' when FR = 0 | C34: m0 | D34: - | E34: 0
B35: Value of 'fNutr' when FR = 0 | C35: fN0 | D35: - | E35: 1
B36: Power of (1-FR) in 'fNutr' | C36: fNn | D36: - | E36: 0
B37: Age modifier (fAge)
B38: Maximum stand age used in age modifier | C38: MaxAge | D38: years | E38: 50
B39: Power of relative age in function for fAge | C39: nAge | D39: - | E39: 4
B40: Relative age to give fAge = 0.5 | C40: rAge | D40: - | E40: 0.95
B41: Stem mortality & self-thinning
B42: Mortality rate for large t | C42: gammaNx | D42: %/year | E42: 0
B43: Seedling mortality rate (t = 0) | C43: gammaN0 | D43: %/year | E43: 0
B44: Age at which mortality rate has median value | C44: tgammaN | D44: years | E44: 0
B45: Shape of mortality response | C45: ngammaN | D45: - | E45: 1
B46: Max. stem mass per tree @ 1000 trees/hectare | C46: wSx1000 | D46: kg/tree | E46: 300
B47: Power in self-thinning rule | C47: thinPower | D47: - | E47: 1.5
B48: Fraction mean single-tree foliage biomass lost per dead tree | C48: mF | D48: - | E48: 0
B49: Fraction mean single-tree root biomass lost per dead tree | C49: mR | D49: - | E49: 0.2
B50: Fraction mean single-tree stem biomass lost per dead tree | C50: mS | D50: - | E50: 0.2
B51: Canopy structure and processes
B52: Specific leaf area
B53: Specific leaf area at age 0 | C53: SLA0 | D53: m2/kg | E53: 6
B54: Specific leaf area for mature leaves | C54: SLA1 | D54: m2/kg | E54: 6
B55: Age at which specific leaf area = (SLA0+SLA1)/2 | C55: tSLA | D55: years | E55: 2.5
B56: Light interception
B57: Extinction coefficient for absorption of PAR by canopy | C57: k | D57: - | E57: 0.5
B58: Age at canopy cover | C58: fullCanAge | D58: years | E58: 0
B59: Maximum proportion of rainfall evaporated from canopy | C59: MaxIntcptn | D59: - | E59: 0.15
B60: LAI for maximum rainfall interception | C60: LAImaxIntcptn | D60: - | E60: 0
B61: Production and respiration
B62: Canopy quantum efficiency | C62: alpha | D62: molC/molPAR | E62: 0.055
B63: Ratio NPP/GPP | C63: Y | D63: - | E63: 0.47
B64: Conductance
B65: Minimum canopy conductance | C65: MinCond | D65: m/s | E65: 0
B66: Maximum canopy conductance | C66: MaxCond | D66: m/s | E66: 0.02
B67: LAI for maximum canopy conductance | C67: LAIgcx | D67: - | E67: 3.33
B68: Defines stomatal response to VPD | C68: CoeffCond | D68: 1/mBar | E68: 0.05
B69: Canopy boundary layer conductance | C69: BLcond | D69: m/s | E69: 0.2
B70: Wood and stand properties
B71: Branch and bark fraction (fracBB)
B72: Branch and bark fraction at age 0 | C72: fracBB0 | D72: - | E72: 0.15
B73: Branch and bark fraction for mature stands | C73: fracBB1 | D73: - | E73: 0.15
B74: Age at which fracBB = (fracBB0+fracBB1)/2 | C74: tBB | D74: years | E74: 1.5
B75: Basic Density
B76: Minimum basic density - for young trees | C76: rhoMin | D76: t/m3 | E76: 0.5
B77: Maximum basic density - for older trees | C77: rhoMax | D77: t/m3 | E77: 0.5
B78: Age at which rho = (rhoMin+rhoMax)/2 | C78: tRho | D78: years | E78: 4
B79: Stem height
B80: Constant in the stem height relationship | C80: aH | D80: - | E80: 0
B81: Power of DBH in the stem height relationship | C81: nHB | D81: - | E81: 0
B82: Power of stocking in the stem height relationship | C82: nHN | D82: - | E82: 0
B83: Stem volume
B84: Constant in the stem volume relationship | C84: aV | D84: - | E84: 0
B85: Power of DBH in the stem volume relationship | C85: nVB | D85: - | E85: 0
B86: Power of stocking in the stem volume relationship | C86: nVN | D86: - | E86: 0
B87: Conversion factors
B88: Intercept of net v. solar radiation relationship | C88: Qa | D88: W/m2 | E88: -90
B89: Slope of net v. solar radiation relationship | C89: Qb | D89: - | E89: 0.8
B90: Molecular weight of dry matter | C90: gDM_mol | D90: gDM/mol | E90: 24
B91: Conversion of solar radiation to PAR | C91: molPAR_MJ | D91: mol/MJ | E91: 2.3
B96: Standard 3PGpjs options
B98: Interpolate lookups? (Yes/No) | C98: no
B99: Output frequency (None, Rotation, Annual or Monthly) | C99: Annual
B100: Clear output region? (Yes/No) | C100: yes
B101: Output data (3-PG names from 3PGpjs_Outputs) | C101: stemNo, WF, WR, WS, standVol, LAI, MAI, avDBH, BasArea, GPP,Transp

Sheet FR decline Monthly Ex 8
A2: Run type : | B2: SingleSite | E2: Stand initialisation and site factor data | K2: Optional parameter block | R2: Observed data
A3: Site : | B3: SE Qld | F3: Date planted = | G3: 1988/6 | I3: Latitude = | J3: -26 | L3: Parameters | Q3: (The format of this block of observed data
A4: Species : | B4: Trial | F4: Initial year = | G4: 1 | I4: Fertility rating = | J4: 1 | L4: alpha = | M4: 0.052 | Q4: is quite arbitrary and is of no concern to
A5: Climate data : | B5: Qld Metdata | F5: Initial month = | G5: June | I5: Soil class = | J5: cl | L5: gammaF1 = | M5: 0.085 | Q5: 3PGpjs - the user has placed it here and
A6: Met station : | B6: Yearly Data | F6: End age = | G6: 10 | I6: Maximum ASW = | J6: 300 | L6: poolFractn = | M6: 0 | Q6: uses it to plot observed data.)
A7: Title : | B7: FR declines with stand age | F7: Initial WF = | G7: 7 | I7: Minimum ASW = | J7: 0
F8: Initial WR = | G8: 2 | I8: Atmospheric CO2 = | J8: 350 | K8: Silvicultural events | R8: Age | S8: standVol | T8: LAI
F9: Initial WS = | G9: 5 | L9: Fertility | N9: Irrigation
F10: Initial stocking = | G10: 1111 | L10: Age | M10: FR | N10: Age | O10: Ml/ha/yr | R10: 0.83 | S10: 2.730293817
F11: Initial ASW = | G11: 300 | L11: 2 | M11: 1 | N11: 6 | O11: 4 | R11: 1.08 | S11: 9.339603211 | T11: 4.46
L12: 3 | M12: 0.8 | N12: 6 | O12: -1 | R12: 1.33 | S12: 19.05384691
L13: 5 | M13: 0.5 | R13: 1.58 | S13: 26.62194645 | T13: 4.81
L14: 7 | M14: 0.3 | R14: 1.83 | S14: 42.97620438 | T14: 4.79
L15: 99 | M15: 0.1
F16: Output details | R16: 2.08 | S16: 60.98791167
G17: Output frequency : | H17: a | R17: 2.33 | S17: 72.89770122 | T17: 5.17
G18: Output data : | H18: FR, Irrig, fSW | R18: 2.58 | S18: 83.94959967
G19: Output sheet : | R19: 2.83 | S19: 95.85868178
G20: Output ages : | H20: 1y 4m, 2y 1m, 2y 10m, 3y 7m, 4y 7m, 6y 5m, 7y 4m, 10y | R20: 3.08 | S20: 101.1090528 | T20: 3.86
R21: 3.58 | S21: 114.1160268
R22: 4.58 | S22: 140.3976957
R23: 6.5 | S23: 192.2696334
R24: 7.33 | S24: 204.9150965
R25: 9.92 | S25: 221.6892464
R27: CASE I | S27: CASE II | U27: CASE III
R28: FR=1 @ 2 yr | S28: FR=1 @ 2 & 5yrs | T28: CASE II-I | U28: FR=0.5 all | V28: CASE III-I
Q29: AGE | R29: MAI | S29: MAI | T29: Difference | V29: Difference
Q30: 1
Q31: 1.333333333
Q32: 2.083333333
Q33: 2.833333333
Q34: 3.583333333
Q35: 4.583333333
Q36: 6.416666667
A37: #Output from 3PGpjs 2.7 / 3-PG vsn 1 Sep2009 | Q37: 7.33
A38: Stand development for SE Qld | Q38: 10
A39: FR declines with stand age
A40: Year & month | B40: Stand age | C40: Stems | D40: Foliage DM | E40: Root DM | F40: Stem DM | G40: Stand volume | H40: LAI | I40: MAI | J40: Mean DBH | K40: Basal area | L40: GPP | M40: Penman transp. | N40: FR | O40: Applied irrig. | P40: fSW
A41: 1989 - Jun | B41: 1 | C41: 1111 | D41: 7 | E41: 2 | F41: 5 | G41: 8.5 | H41: 4.2 | I41: 8.5 | J41: 4.990435824 | K41: 2.173105898
A42: 1989 - Jul | B42: 1.083333333 | C42: 1111 | D42: 7.426706096 | E42: 3.033947786 | F42: 6.545742545 | G42: 11.12776233 | H42: 4.456023658 | I42: 10.27178061 | J42: 5.583208628 | K42: 2.720017219 | L42: 7.100843462 | M42: 85.68177404 | N42: 1 | O42: 4 | P42: 1
A43: 1989 - Aug | B43: 1.166666667 | C43: 1111 | D43: 7.855475569 | E43: 4.30386785 | F43: 8.423439599 | G43: 14.31984732 | H43: 4.713285341 | I43: 12.27415484 | J43: 6.201854656 | K43: 3.356194401 | L43: 8.5085725 | M43: 100.1263444 | N43: 1 | O43: 4 | P43: 0.9999808953
A44: 1989 - Sep | B44: 1.25 | C44: 1111 | D44: 8.232812854 | E44: 5.774533295 | F44: 10.54016695 | G44: 17.91828382 | H44: 4.939687712 | I44: 14.33462706 | J44: 6.809064176 | K44: 4.045561384 | L44: 9.542757524 | M44: 113.798987 | N44: 1 | O44: 4 | P44: 1
A45: 1989 - Oct | B45: 1.333333333 | C45: 1111 | D45: 8.575050028 | E45: 7.404803407 | F45: 12.93306573 | G45: 21.98621174 | H45: 5.145030017 | I45: 16.4896588 | J45: 7.414978997 | K45: 4.797597293 | L45: 10.59972204 | M45: 126.8475003 | N45: 1 | O45: 4 | P45: 1
A46: 1989 - Nov | B46: 1.416666667 | C46: 1111 | D46: 8.831705947 | E46: 9.062968893 | F46: 15.44528963 | G46: 26.25699237 | H46: 5.299023568 | I46: 18.53434755 | J46: 7.984223094 | K46: 5.562490308 | L46: 10.92538668 | M46: 129.0577004 | N46: 1 | O46: 4 | P46: 1
A47: 1989 - Dec | B47: 1.5 | C47: 1111 | D47: 9.016126262 | E47: 10.75260936 | F47: 18.05974335 | G47: 30.70156369 | H47: 5.409675757 | I47: 20.46770913 | J47: 8.521789372 | K47: 6.336734803 | L47: 11.22495317 | M47: 136.7537294 | N47: 1 | O47: 4 | P47: 1
A48: 1990 - Jan | B48: 1.583333333 | C48: 1111 | D48: 9.132731232 | E48: 12.41674242 | F48: 20.73342066 | G48: 35.24681513 | H48: 5.479638739 | I48: 22.2611464 | J48: 9.026385405 | K48: 7.109379314 | L48: 11.29584832 | M48: 133.6006337 | N48: 1 | O48: 4 | P48: 1
A49: 1990 - Feb | B49: 1.666666667 | C49: 1111 | D49: 9.066101654 | E49: 13.72691913 | F49: 23.0076992 | G49: 39.11308864 | H49: 5.439660992 | I49: 23.46785318 | J49: 9.426449301 | K49: 7.753543228 | L49: 9.420791242 | M49: 111.1900829 | N49: 1 | O49: 4 | P49: 1
A50: 1990 - Mar | B50: 1.75 | C50: 1111 | D50: 9.008096305 | E50: 15.08590839 | F50: 25.43200215 | G50: 43.23440365 | H50: 5.404857783 | I50: 24.70537351 | J50: 9.828250181 | K50: 8.428617519 | L50: 9.92557637 | M50: 114.3367458 | N50: 1 | O50: 4 | P50: 1
A51: 1990 - Apr | B51: 1.833333333 | C51: 1111 | D51: 8.812194899 | E51: 16.11632517 | F51: 27.4524089 | G51: 46.66909513 | H51: 5.287316939 | I51: 25.45587007 | J51: 10.14634202 | K51: 8.983031778 | L51: 8.130429289 | M51: 97.39477748 | N51: 1 | O51: 4 | P51: 1
A52: 1990 - May | B52: 1.916666667 | C52: 1111 | D52: 8.560379373 | E52: 16.94988774 | F52: 29.28098892 | G52: 49.77768116 | H52: 5.136227624 | I52: 25.97096408 | J52: 10.42265506 | K52: 9.478959558 | L52: 7.199259282 | M52: 85.214399 | N52: 1 | O52: 4 | P52: 1
A53: 1990 - Jun | B53: 2 | C53: 1111 | D53: 8.288169699 | E53: 17.71195968 | F53: 31.00972555 | G53: 52.71653344 | H53: 4.97290182 | I53: 26.35826672 | J53: 10.6747679 | K53: 9.943077451 | L53: 6.784457382 | M53: 80.76119772 | N53: 1 | O53: 4 | P53: 1
A54: 1990 - Jul | B54: 2.083333333 | C54: 1111 | D54: 8.068809166 | E54: 18.5576243 | F54: 32.90631415 | G54: 55.94073406 | H54: 4.841285499 | I54: 26.85155235 | J54: 10.94209942 | K54: 10.44732856 | L54: 7.41522355 | M54: 85.65114549 | N54: 1 | O54: 4 | P54: 0.9995670267
A55: 1990 - Aug | B55: 2.166666667 | C55: 1111 | D55: 7.887862838 | E55: 19.79436852 | F55: 34.93259374 | G55: 59.38540936 | H55: 4.732717703 | I55: 27.40865047 | J55: 11.21795828 | K55: 10.98073931 | L55: 8.597783699 | M55: 99.2587125 | N55: 0.8 | O55: 4 | P55: 0.9895329705
A56: 1990 - Sep | B56: 2.25 | C56: 1111 | D56: 7.74184979 | E56: 21.21486256 | F56: 37.08897157 | G56: 63.05125167 | H56: 4.645109874 | I56: 28.02277852 | J56: 11.5014599 | K56: 11.54276568 | L56: 9.350293022 | M56: 111.7762011 | N56: 0.8 | O56: 4 | P56: 0.9788447491
A57: 1990 - Oct | B57: 2.333333333 | C57: 1111 | D57: 7.6602288 | E57: 22.80567585 | F57: 39.51473003 | G57: 67.17504105 | H57: 4.59613728 | I57: 28.78930331 | J57: 11.80911172 | K57: 12.168538 | L57: 10.44422507 | M57: 126.8470157 | N57: 0.8 | O57: 4 | P57: 1
A58: 1990 - Nov | B58: 2.416666667 | C58: 1111 | D58: 7.585398481 | E58: 24.40804368 | F58: 41.9965323 | G58: 71.3941049 | H58: 4.551239089 | I58: 29.54238824 | J58: 12.11267049 | K58: 12.80217462 | L58: 10.64015594 | M58: 129.0571373 | N58: 0.8 | O58: 4 | P58: 1
A59: 1990 - Dec | B59: 2.5 | C59: 1111 | D59: 7.515775962 | E59: 26.03019953 | F59: 44.52802568 | G59: 75.69764365 | H59: 4.509465577 | I59: 30.27905746 | J59: 12.41170866 | K59: 13.4420989 | L59: 10.83779513 | M59: 136.7530508 | N59: 0.8 | O59: 4 | P59: 1
A60: 1991 - Jan | B60: 2.583333333 | C60: 1111 | D60: 7.444326551 | E60: 27.61618181 | F60: 47.07767509 | G60: 80.03204766 | H60: 4.466595931 | I60: 30.98014748 | J60: 12.70302715 | K60: 14.08051024 | L60: 10.83552082 | M60: 133.5998857 | N60: 0.8 | O60: 4 | P60: 1
A61: 1991 - Feb | B61: 2.666666667 | C61: 1111 | D61: 7.279512584 | E61: 28.81675014 | F61: 49.22157487 | G61: 83.67667728 | H61: 4.36770755 | I61: 31.37875398 | J61: 12.94093831 | K61: 14.61286844 | L61: 8.991766883 | M61: 111.1893859 | N61: 0.8 | O61: 4 | P61: 1
A62: 1991 - Mar | B62: 2.75 | C62: 1111 | D62: 7.147156989 | E62: 30.06645291 | F62: 51.48523546 | G62: 87.52490028 | H62: 4.288294193 | I62: 31.82723646 | J62: 13.18566688 | K62: 15.170788 | L62: 9.429057658 | M62: 114.3359447 | N62: 0.8 | O62: 4 | P62: 1
A63: 1991 - Apr | B63: 2.833333333 | C63: 1111 | D63: 6.935722125 | E63: 30.96340165 | F63: 53.35741958 | G63: 90.70761328 | H63: 4.161433275 | I63: 32.01445175 | J63: 13.38336988 | K63: 15.62913355 | L63: 7.693529599 | M63: 97.39402048 | N63: 0.8 | O63: 4 | P63: 1
A64: 1991 - May | B64: 2.916666667 | C64: 1111 | D64: 6.698086139 | E64: 31.65091344 | F64: 55.0415813 | G64: 93.57068822 | H64: 4.018851683 | I64: 32.08137882 | J64: 13.55778833 | K64: 16.0391607 | L64: 6.782683838 | M64: 85.21364381 | N64: 0.8 | O64: 4 | P64: 0.9999996221
A65: 1991 - Jun | B65: 3 | C65: 1111 | D65: 6.455421234 | E65: 32.2596664 | F65: 56.62197986 | G65: 96.25736576 | H65: 3.87325274 | I65: 32.08578859 | J65: 13.7186511 | K65: 16.42202703 | L65: 6.362720587 | M65: 80.76043193 | N65: 0.8 | O65: 4 | P65: 1
A66: 1991 - Jul | B66: 3.083333333 | C66: 1111 | D66: 6.207476887 | E66: 33.25938471 | F66: 58.09139441 | G66: 98.7553705 | H66: 3.724486132 | I66: 32.02876881 | J66: 13.86588382 | K66: 16.7764109 | L66: 6.922812459 | M66: 85.65973376 | N66: 0.5 | O66: 4 | P66: 0.9997020166
A67: 1991 - Aug | B67: 3.166666667 | C67: 1111 | D67: 6.020674653 | E67: 34.52536351 | F67: 59.77143624 | G67: 101.6114416 | H67: 3.612404792 | I67: 32.08782367 | J67: 14.03158327 | K67: 17.17976807 | L67: 8.054673689 | M67: 100.1246751 | N67: 0.5 | O67: 4 | P67: 0.9999782348
A68: 1991 - Sep | B68: 3.25 | C68: 1111 | D68: 5.86946753 | E68: 35.99264762 | F68: 61.5662401 | G68: 104.6626082 | H68: 3.521680518 | I68: 32.20387944 | J68: 14.20562687 | K68: 17.6085967 | L68: 8.809545701 | M68: 113.7971399 | N68: 0.5 | O68: 4 | P68: 1
A69: 1991 - Oct | B69: 3.333333333 | C69: 1111 | D69: 5.757969871 | E69: 37.62377402 | F69: 63.51448817 | G69: 107.9746299 | H69: 3.454781923 | I69: 32.39238897 | J69: 14.391232 | K69: 18.07173665 | L69: 9.588616229 | M69: 126.8452196 | N69: 0.5 | O69: 4 | P69: 1
A70: 1991 - Nov | B70: 3.416666667 | C70: 1111 | D70: 5.658045047 | E70: 39.26112684 | F70: 65.49437264 | G70: 111.3404335 | H70: 3.394827028 | I70: 32.58744395 | J70: 14.5764791 | K70: 18.53997776 | L70: 9.725706121 | M70: 129.0551425 | N70: 0.5 | O70: 4 | P70: 1
A71: 1991 - Dec | B71: 3.5 | C71: 1111 | D71: 5.567672642 | E71: 40.91244518 | F71: 67.50069466 | G71: 114.7511809 | H71: 3.340603585 | I71: 32.78605169 | J71: 14.7608967 | K71: 19.01207076 | L71: 9.866188837 | M71: 136.7507461 | N71: 0.5 | O71: 4 | P71: 1
A72: 1992 - Jan | B72: 3.583333333 | C72: 1111 | D72: 5.481672954 | E72: 42.5201793 | F72: 69.51074817 | G72: 118.1682719 | H72: 3.289003773 | I72: 32.97719216 | J72: 14.94247798 | K72: 19.48270207 | L72: 9.827063956 | M72: 133.5974438 | N72: 0.5 | O72: 4 | P72: 0.9999999995
A73: 1992 - Feb | B73: 3.666666667 | C73: 1111 | D73: 5.336787947 | E73: 43.69725895 | F73: 71.19408891 | G73: 121.0299511 | H73: 3.202072768 | I73: 33.00816849 | J73: 15.09220214 | K73: 19.8750929 | L73: 8.126118495 | M73: 110.0430556 | N73: 0.5 | O73: 4 | P73: 1
A74: 1992 - Mar | B74: 3.75 | C74: 1111 | D74: 5.217561245 | E74: 44.92631687 | F74: 72.96185976 | G74: 124.0351616 | H74: 3.130536747 | I74: 33.07604309 | J74: 15.24722923 | K74: 20.28550387 | L74: 8.482308202 | M74: 110.6538979 | N74: 0.5 | O74: 4 | P74: 1
A75: 1992 - Apr | B75: 3.833333333 | C75: 1111 | D75: 5.047249595 | E75: 45.7624949 | F75: 74.41821521 | G75: 126.5109659 | H75: 3.028349757 | I75: 33.00286066 | J75: 15.37330797 | K75: 20.62237098 | L75: 6.892781315 | M75: 92.51369342 | N75: 0.5 | O75: 4 | P75: 1
A76: 1992 - May | B76: 3.916666667 | C76: 1111 | D76: 4.86146337 | E76: 46.36850316 | F76: 75.72372875 | G76: 128.7303389 | H76: 2.916878022 | I76: 32.86732057 | J76: 15.48511029 | K76: 20.9234139 | L76: 6.045080487 | M76: 78.78290862 | N76: 0.5 | O76: 4 | P76: 1
A77: 1992 - Jun | B77: 4 | C77: 1111 | D77: 4.673575513 | E77: 46.88102682 | F77: 76.9404452 | G77: 130.7987568 | H77: 2.804145308 | I77: 32.69968921 | J77: 15.58830027 | K77: 21.20320274 | L77: 5.638517581 | M77: 72.35565179 | N77: 0.5 | O77: 4 | P77: 0.9999968909
A78: 1992 - Jul | B78: 4.083333333 | C78: 1111 | D78: 4.518951113 | E78: 47.48497516 | F78: 78.25772681 | G78: 133.0381356 | H78: 2.711370668 | I78: 32.58076789 | J78: 15.69895165 | K78: 21.50528706 | L78: 6.100157988 | M78: 74.25948016 | N78: 0.5 | O78: 4 | P78: 1
A79: 1992 - Aug | B79: 4.166666667 | C79: 1111 | D79: 4.409676118 | E79: 48.32350386 | F79: 79.7585854 | G79: 135.5895952 | H79: 2.645805671 | I79: 32.54150284 | J79: 15.8237073 | K79: 21.84843945 | L79: 7.077653983 | M79: 84.22020389 | N79: 0.5 | O79: 4 | P79: 1
A80: 1992 - Sep | B80: 4.25 | C80: 1111 | D80: 4.326071886 | E80: 49.34128544 | F80: 81.3593131 | G80: 138.3108323 | H80: 2.595643132 | I80: 32.54372524 | J80: 15.95526434 | K80: 22.21324199 | L80: 7.733148505 | M80: 93.54228716 | N80: 0.5 | O80: 4 | P80: 1
A81: 1992 - Oct | B81: 4.333333333 | C81: 1111 | D81: 4.272087151 | E81: 50.50675183 | F81: 83.09559235 | G81: 141.262507 | H81: 2.563252291 | I81: 32.59904008 | J81: 16.0962658 | K81: 22.60758697 | L81: 8.416161932 | M81: 102.5131707 | N81: 0.5 | O81: 4 | P81: 1
A82: 1992 - Nov | B82: 4.416666667 | C82: 1111 | D82: 4.225567593 | E82: 51.68347576 | F82: 84.86053926 | G82: 144.2629167 | H82: 2.535340556 | I82: 32.6633019 | J82: 16.23784474 | K82: 23.00703799 | L82: 8.5444252 | M82: 103.1664248 | N82: 0.5 | O82: 4 | P82: 1
A83: 1992 - Dec | B83: 4.5 | C83: 1111 | D83: 4.185098753 | E83: 52.87872665 | F83: 86.65003893 | G83: 147.3050662 | H83: 2.511059252 | I83: 32.73445915 | J83: 16.37965025 | K83: 23.41063472 | L83: 8.678100027 | M83: 108.2521614 | N83: 0.5 | O83: 4 | P83: 1
A84: 1993 - Jan | B84: 4.583333333 | C84: 1111 | D84: 4.146630465 | E84: 54.04220363 | F84: 88.44426506 | G84: 150.3552506 | H84: 2.487978279 | I84: 32.80478195 | J84: 16.52012537 | K84: 23.81390507 | L84: 8.655636295 | M84: 104.9110004 | N84: 0.5 | O84: 4 | P84: 1
A85: 1993 - Feb | B85: 4.666666667 | C85: 1111 | D85: 4.058230884 | E85: 54.83244709 | F85: 89.94816775 | G85: 152.9118852 | H85: 2.43493853 | I85: 32.76683254 | J85: 16.63659485 | K85: 24.15087228 | L85: 7.167751442 | M85: 86.70499893 | N85: 0.5 | O85: 4 | P85: 1
A86: 1993 - Mar | B86: 4.75 | C86: 1111 | D86: 3.988794271 | E86: 55.67183516 | F86: 91.52638394 | G86: 155.5948527 | H86: 2.393276563 | I86: 32.75681109 | J86: 16.75760439 | K86: 24.50348224 | L86: 7.480008399 | M86: 87.54290211 | N86: 0.5 | O86: 4 | P86: 1
A87: 1993 - Apr | B87: 4.833333333 | C87: 1111 | D87: 3.875350732 | E87: 56.16889543 | F87: 92.82644688 | G87: 157.8049597 | H87: 2.325210439 | I87: 32.64930201 | J87: 16.85637533 | K87: 24.7931853 | L87: 6.080435514 | M87: 73.56005804 | N87: 0.5 | O87: 4 | P87: 1
A88: 1993 - May | B88: 4.916666667 | C88: 1111 | D88: 3.746901435 | E88: 56.46519719 | F88: 93.99009159 | G88: 159.7831557 | H88: 2.248140861 | I88: 32.49826896 | J88: 16.94409991 | K88: 25.05191604 | L88: 5.326458304 | M88: 62.92961998 | N88: 0.5 | O88: 4 | P88: 1
A89: 1993 - Jun | B89: 5 | C89: 1111 | D89: 3.614522035 | E89: 56.68084402 | F89: 95.07237512 | G89: 161.6230377 | H89: 2.168713221 | I89: 32.32460754 | J89: 17.02512398 | K89: 25.29207766 | L89: 4.959607531 | M89: 57.90578495 | N89: 0.5 | O89: 4 | P89: 1
A90: 1993 - Jul | B90: 5.083333333 | C90: 1111 | D90: 3.507535694 | E90: 56.97817764 | F90: 96.24147885 | G90: 163.610514 | H90: 2.104521416 | I90: 32.18567489 | J90: 17.11204551 | K90: 25.55099361 | L90: 5.355102193 | M90: 59.533215 | N90: 0.5 | O90: 4 | P90: 1
A91: 1993 - Aug | B91: 5.166666667 | C91: 1111 | D91: 3.396564943 | E91: 57.75573547 | F91: 97.33882267 | G91: 165.4759985 | H91: 2.037938966 | I91: 32.02761262 | J91: 17.19307313 | K91: 25.79354063 | L91: 6.205838494 | M91: 67.55850961 | N91: 0.3 | O91: 4 | P91: 1
A92: 1993 - Sep | B92: 5.25 | C92: 1111 | D92: 3.305084932 | E92: 58.6968754 | F92: 98.49964538 | G92: 167.4493971 | H92: 1.983050959 | I92: 31.89512327 | J92: 17.27821012 | K92: 26.04962301 | L92: 6.735163155 | M92: 74.32954546 | N92: 0.3 | O92: 4 | P92: 0.9999673066
A93: 1993 - Oct | B93: 5.333333333 | C93: 1111 | D93: 3.234896515 | E93: 59.77346283 | F93: 99.74507618 | G93: 169.5666295 | H93: 1.940937909 | I93: 31.79374303 | J93: 17.36890411 | K93: 26.3238117 | L93: 7.262159907 | M93: 80.59825973 | N93: 0.3 | O93: 4 | P93: 0.9972503857
A94: 1993 - Nov | B94: 5.416666667 | C94: 1111 | D94: 3.17012499 | E94: 60.84278427 | F94: 100.9926315 | G94: 171.6874735 | H94: 1.902074994 | I94: 31.69614895 | J94: 17.45909293 | K94: 26.59789663 | L94: 7.284411371 | M94: 80.03427728 | N94: 0.3 | O94: 4 | P94: 0.9916973734
A95: 1993 - Dec | B95: 5.5 | C95: 1111 | D95: 3.107108338 | E95: 61.89683746 | F95: 102.2231651 | G95: 173.7793806 | H95: 1.864265003 | I95: 31.59625102 | J95: 17.54741678 | K95: 26.86768965 | L95: 7.241856442 | M95: 82.13379922 | N95: 0.3 | O95: 4 | P95: 0.9771770407
A96: 1994 - Jan | B96: 5.583333333 | C96: 1111 | D96: 3.054164613 | E96: 62.94197926 | F96: 103.4870558 | G96: 175.9279948 | H96: 1.832498768 | I96: 31.50949161 | J96: 17.63749159 | K96: 27.14423332 | L96: 7.337543759 | M96: 80.51029739 | N96: 0.3 | O96: 4 | P96: 0.9999270943
A97: 1994 - Feb | B97: 5.666666667 | C97: 1111 | D97: 2.969789367 | E97: 63.60882815 | F97: 104.5403127 | G97: 177.7185315 | H97: 1.78187362 | I97: 31.3620938 | J97: 17.71206597 | K97: 27.37425965 | L97: 6.041413176 | M97: 66.10856971 | N97: 0.3 | O97: 4 | P97: 0.9999999047
A98: 1994 - Mar | B98: 5.75 | C98: 1111 | D98: 2.899421566 | E98: 64.31902527 | F98: 105.6384672 | G98: 179.5853942 | H98: 1.739652939 | I98: 31.23224247 | J98: 17.78935401 | K98: 27.61368053 | L98: 6.264996543 | M98: 66.34114725 | N98: 0.3 | O98: 4 | P98: 1
A99: 1994 - Apr | B99: 5.833333333 | C99: 1111 | D99: 2.80153054 | E99: 64.68550649 | F99: 106.5377535 | G99: 181.1141809 | H99: 1.680918324 | I99: 31.0481453 | J99: 17.85229739 | K99: 27.80943503 | L99: 5.061941937 | M99: 55.43655709 | N99: 0.3 | O99: 4 | P99: 1
A100: 1994 - May | B100: 5.916666667 | C100: 1111 | D100: 2.695218379 | E100: 64.85347208 | F100: 107.3380206 | G100: 182.4746351 | H100: 1.617131027 | I100: 30.84078339 | J100: 17.90805004 | K100: 27.98340376 | L100: 4.404964363 | M100: 47.23508926 | N100: 0.3 | O100: 4 | P100: 1
A101: 1994 - Jun | B101: 6 | C101: 1111 | D101: 2.587527867 | E101: 64.93485984 | F101: 108.0769549 | G101: 183.7308233 | H101: 1.55251672 | I101: 30.62180388 | J101: 17.95931487 | K101: 28.14384757 | L101: 4.073462024 | M101: 43.21414452 | N101: 0.3 | O101: 4 | P101: 1
A102: 1994 - Jul | B102: 6.083333333 | C102: 1111 | D102: 2.497469939 | E102: 65.09123398 | F102: 108.869361 | G102: 185.0779137 | H102: 1.498481963 | I102: 30.42376664 | J102: 18.01406273 | K102: 28.31569865 | L102: 4.367415115 | M102: 44.18326884 | N102: 0.3 | O102: 4 | P102: 1
A103: 1994 - Aug | B103: 6.166666667 | C103: 1111 | D103: 2.431388133 | E103: 65.43705604 | F103: 109.763582 | G103: 186.5980895 | H103: 1.45883288 | I103: 30.25914965 | J103: 18.0755666 | K103: 28.50938046 | L103: 5.026839882 | M103: 49.76453893 | N103: 0.3 | O103: -1 | P103: 1
A104: 1994 - Sep | B104: 6.25 | C104: 1111 | D104: 2.378819236 | E104: 65.91929851 | F104: 110.7087476 | G104: 188.2048708 | H104: 1.427291542 | I104: 30.11277933 | J104: 18.14025749 | K104: 28.71381083 | L104: 5.453325346 | M104: 54.82720531 | N104: 0.3 | O104: -1 | P104: 0.9993438326
A105: 1994 - Oct | B105: 6.333333333 | C105: 1111 | D105: 2.339688241 | E105: 66.50737728 | F105: 111.711876 | G105: 189.9101892 | H105: 1.403812945 | I105: 29.98581934 | J105: 18.20856414 | K105: 28.93046013 | L105: 5.836309191 | M105: 59.22123523 | N105: 0.3 | O105: -1 | P105: 0.988307261
A106: 1994 - Nov | B106: 6.416666667 | C106: 1111 | D106: 2.307493853 | E106: 67.11418385 | F106: 112.7403945 | G106: 191.6586706 | H106: 1.384496312 | I106: 29.86888373 | J106: 18.27822921 | K106: 29.15225664 | L106: 5.956627286 | M106: 59.91831115 | N106: 0.3 | O106: -1 | P106: 0.9987805528
A107: 1994 - Dec | B107: 6.5 | C107: 1111 | D107: 2.279279501 | E107: 67.73510239 | F107: 113.7798515 | G107: 193.4257475 | H107: 1.367567701 | I107: 29.7578073 | J107: 18.34825952 | K107: 29.37606963 | L107: 6.031938116 | M107: 62.71089778 | N107: 0.3 | O107: -1 | P107: 1
A108: 1995 - Jan | B108: 6.583333333 | C108: 1111 | D108: 2.252658463 | E108: 68.33125944 | F108: 114.8175904 | G108: 195.1899037 | H108: 1.351595078 | I108: 29.6490993 | J108: 18.41780279 | K108: 29.59917301 | L108: 5.993702657 | M108: 60.62917049 | N108: 0.3 | O108: -1 | P108: 1
A109: 1995 - Feb | B109: 6.666666667 | C109: 1111 | D109: 2.200288902 | E109: 68.6251478 | F109: 115.6840861 | G109: 196.6629463 | H109: 1.320173341 | I109: 29.49944195 | J109: 18.47558995 | K109: 29.78520339 | L109: 4.945658132 | M109: 50.04687028 | N109: 0.3 | O109: -1 | P109: 1
A110: 1995 - Mar | B110: 6.75 | C110: 1111 | D110: 2.158007013 | E110: 68.95925796 | F110: 116.5880201 | G110: 198.1996342 | H110: 1.294804208 | I110: 29.36290877 | J110: 18.53560544 | K110: 29.97902421 | L110: 5.132264057 | M110: 50.41382828 | N110: 0.3 | O110: -1 | P110: 0.9999998959
A111: 1995 - Apr | B111: 6.833333333 | C111: 1111 | D111: 2.092872911 | E111: 69.01661002 | F111: 117.3287716 | G111: 199.4589116 | H111: 1.255723747 | I111: 29.18910902 | J111: 18.58458459 | K111: 30.13766884 | L111: 4.150614566 | M111: 42.30528493 | N111: 0.3 | O111: -1 | P111: 0.9997385885
A112: 1995 - May | B112: 6.916666667 | C112: 1111 | D112: 2.020026803 | E112: 68.91481058 | F112: 117.9879956 | G112: 200.5795925 | H112: 1.212016082 | I112: 28.99945916 | J112: 18.62802161 | K112: 30.27871264 | L112: 3.612174167 | M112: 36.19780744 | N112: 0.3 | O112: -1 | P112: 0.9999969988
A113: 1995 - Jun | B113: 7 | C113: 1111 | D113: 1.945056381 | E113: 68.74498745 | F113: 118.5962003 | G113: 201.6135405 | H113: 1.167033829 | I113: 28.80193435 | J113: 18.66797151 | K113: 30.40872417 | L113: 3.337947977 | M113: 33.18313318 | N113: 0.3 | O113: -1 | P113: 1
A114: 1995 - Jul | B114: 7.083333333 | C114: 1111 | D114: 1.88316673 | E114: 68.63927941 | F114: 119.2477325 | G114: 202.7211452 | H114: 1.129900038 | I114: 28.6194558 | J114: 18.71063502 | K114: 30.5478743 | L114: 3.575402421 | M114: 33.98954848 | N114: 0.3 | O114: -1 | P114: 1
A115: 1995 - Aug | B115: 7.166666667 | C115: 1111 | D115: 1.802483727 | E115: 68.96276229 | F115: 119.7486987 | G115: 203.5727878 | H115: 1.081490236 | I115: 28.40550528 | J115: 18.74334681 | K115: 30.65478133 | L115: 4.11366909 | M115: 38.32176767 | N115: 0.1 | O115: -1 | P115: 0.9999452808
A116: 1995 - Sep | B116: 7.25 | C116: 1111 | D116: 1.732156453 | E116: 69.38451353 | F116: 120.2724903 | G116: 204.4632335 | H116: 1.039293872 | I116: 28.20182532 | J116: 18.77746378 | K116: 30.76647964 | L116: 4.389081064 | M116: 41.40057478 | N116: 0.1 | O116: -1 | P116: 0.9973537876
A117: 1995 - Oct | B117: 7.333333333 | C117: 1111 | D117: 1.670107806 | E117: 69.86420536 | F117: 120.8116293 | G117: 205.3797698 | H117: 1.002064684 | I117: 28.00633224 | J117: 18.81249 | K117: 30.88136614 | L117: 4.563368388 | M117: 43.36718937 | N117: 0.1 | O117: -1 | P117: 0.9729586295
A118: 1995 - Nov | B118: 7.416666667 | C118: 1111 | D118: 1.614281887 | E118: 70.34648541 | F118: 121.3576096 | G118: 206.3079363 | H118: 0.968569132 | I118: 27.8168004 | J118: 18.84786788 | K118: 30.99762343 | L118: 4.60075892 | M118: 43.23098765 | N118: 0.1 | O118: -1 | P118: 0.9875259704
A119: 1995 - Dec | B119: 7.5 | C119: 1111 | D119: 1.56377259 | E119: 70.83100847 | F119: 121.9080634 | G119: 207.2437078 | H119: 0.9382635541 | I119: 27.63249438 | J119: 18.88344177 | K119: 31.11474508 | L119: 4.631657138 | M119: 44.83081471 | N119: 0.1 | O119: -1 | P119: 0.9995324425
A120: 1996 - Jan | B120: 7.583333333 | C120: 1111 | D120: 1.51582036 | E120: 71.27247232 | F120: 122.4483334 | G120: 208.1621668 | H120: 0.909492216 | I120: 27.44995606 | J120: 18.91826651 | K120: 31.22961418 | L120: 4.530143357 | M120: 42.56682111 | N120: 0.1 | O120: -1 | P120: 1
A121: 1996 - Feb | B121: 7.666666667 | C121: 1111 | D121: 1.456450117 | E121: 71.4199335 | F121: 122.8907565 | G121: 208.9142861 | H121: 0.8738700703 | I121: 27.24968949 | J121: 18.94671754 | K121: 31.32361675 | L121: 3.677544385 | M121: 34.51048663 | N121: 0.1 | O121: -1 | P121: 1
A122: 1996 - Mar | B122: 7.75 | C122: 1111 | D122: 1.403847031 | E122: 71.59013069 | F122: 123.3446989 | G122: 209.6859881 | H122: 0.8423082183 | I122: 27.05625653 | J122: 18.97584731 | K122: 31.42000822 | L122: 3.758795189 | M122: 34.21663954 | N122: 0.1 | O122: -1 | P122: 1
A123: 1996 - Apr | B123: 7.833333333 | C123: 1111 | D123: 1.341710748 | E123: 71.50078872 | F123: 123.7098103 | G123: 210.3066775 | H123: 0.805026449 | I123: 26.84766096 | J123: 18.99923139 | K123: 31.49749417 | L123: 2.993217265 | M123: 28.25954788 | N123: 0.1 | O123: -1 | P123: 1
A124: 1996 - May | B124: 7.916666667 | C124: 1111 | D124: 1.277495039 | E124: 71.26615331 | F124: 124.0282512 | G124: 210.848027 | H124: 0.7664970234 | I124: 26.63343499 | J124: 19.01959354 | K124: 31.56504434 | L124: 2.566270295 | M124: 23.85672247 | N124: 0.1 | O124: -1 | P124: 1
A125: 1996 - Jun | B125: 8 | C125: 1111 | D125: 1.214193736 | E125: 70.9608199 | F125: 124.3179093 | G125: 211.3404458 | H125: 0.7285162414 | I125: 26.41755572 | J125: 19.03808876 | K125: 31.62646376 | L125: 2.337452631 | M125: 21.56563226 | N125: 0.1 | O125: -1 | P125: 1
A126: 1996 - Jul | B126: 8.083333333 | C126: 1111 | D126: 1.15876972 | E126: 70.70286471 | F126: 124.6237815 | G126: 211.8604285 | H126: 0.695261832 | I126: 26.20953755 | J126: 19.05759202 | K126: 31.69129536 | L126: 2.468322953 | M126: 21.79600302 | N126: 0.1 | O126: -1 | P126: 1
A127: 1996 - Aug | B127: 8.166666667 | C127: 1111 | D127: 1.113561703 | E127: 70.56263146 | F127: 124.9651808 | G127: 212.4408073 | H127: 0.6681370219 | I127: 26.01316008 | J127: 19.07932762 | K127: 31.76362584 | L127: 2.797864684 | M127: 24.18791887 | N127: 0.1 | O127: -1 | P127: 1
A128: 1996 - Sep | B128: 8.25 | C128: 1111 | D128: 1.07471872 | E128: 70.49629331 | F128: 125.3230761 | G128: 213.0492294 | H128: 0.6448312318 | I128: 25.82414901 | J128: 19.10207632 | K128: 31.83941591 | L128: 2.991077465 | M128: 26.2271214 | N128: 0.1 | O128: -1 | P128: 0.9999913052
A129: 1996 - Oct | B129: 8.333333333 | C129: 1111 | D129: 1.042608951 | E129: 70.497876 | F129: 125.7033504 | G129: 213.6956957 | H129: 0.6255653706 | I129: 25.64348348 | J129: 19.12620599 | K129: 31.91990557 | L129: 3.188388769 | M129: 28.20853852 | N129: 0.1 | O129: -1 | P129: 0.9999990505
A130: 1996 - Nov | B130: 8.416666667 | C130: 1111 | D130: 1.0129141 | E130: 70.49461148 | F130: 126.0820001 | G130: 214.3394002 | H130: 0.6077484598 | I130: 25.46606735 | J130: 19.1501903 | K130: 32.00001104 | L130: 3.174000489 | M130: 27.87284437 | N130: 0.1 | O130: -1 | P130: 0.9999999991
A131: 1996 - Dec | B131: 8.5 | C131: 1111 | D131: 0.9853444883 | E131: 70.48836489 | F131: 126.4584756 | G131: 214.9794085 | H131: 0.591206693 | I131: 25.29169512 | J131: 19.17399527 | K131: 32.07961681 | L131: 3.162076923 | M131: 28.6936122 | N131: 0.1 | O131: -1 | P131: 1
A132: 1997 - Jan | B132: 8.583333333 | C132: 1111 | D132: 0.9590029506 | E132: 70.45851872 | F132: 126.8281549 | G132: 215.6078634 | H132: 0.5754017704 | I132: 25.11936273 | J132: 19.19733032 | K132: 32.15774711 | L132: 3.094832767 | M132: 27.33225973 | N132: 0.1 | O132: -1 | P132: 1
A133: 1997 - Feb | B133: 8.666666667 | C133: 1111 | D133: 0.9245060605 | E133: 70.23374387 | F133: 127.1312086 | G133: 216.1230547 | H133: 0.5547036363 | I133: 24.93727554 | J133: 19.21643022 | K133: 32.22176803 | L133: 2.515265929 | M133: 22.24539668 | N133: 0.1 | O133: -1 | P133: 1
A134: 1997 - Mar | B134: 8.75 | C134: 1111 | D134: 0.8941227303 | E134: 70.02940012 | F134: 127.4421311 | G134: 216.6516229 | H134: 0.5364736382 | I134: 24.76018547 | J134: 19.23599847 | K134: 32.28742481 | L134: 2.570818227 | M134: 22.1158441 | N134: 0.1 | O134: -1 | P134: 1
A135: 1997 - Apr | B135: 8.833333333 | C135: 1111 | D135: 0.8568695526 | E135: 69.6526044 | F135: 127.6922883 | G135: 217.0768902 | H135: 0.5141217316 | I135: 24.57474228 | J135: 19.25172218 | K135: 32.34023056 | L135: 2.047978214 | M135: 18.32395261 | N135: 0.1 | O135: -1 | P135: 1
A136: 1997 - May | B136: 8.916666667 | C136: 1111 | D136: 0.8177838639 | E136: 69.18076396 | F136: 127.9103179 | G136: 217.4475404 | H136: 0.4906703184 | I136: 24.38664005 | J136: 19.26541184 | K136: 32.38624041 | L136: 1.754737052 | M136: 15.51287809 | N136: 0.1 | O136: -1 | P136: 1
A137: 1997 - Jun | B137: 9 | C137: 1111 | D137: 0.7789187511 | E137: 68.66470703 | F137: 128.108425 | G137: 217.7843224 | H137: 0.4673512507 | I137: 24.19825805 | J137: 19.27783882 | K137: 32.42803477 | L137: 1.596612959 | M137: 14.04186918 | N137: 0.1 | O137: -1 | P137: 1
A138: 1997 - Jul | B138: 9.083333333 | C138: 1111 | D138: 0.7450156068 | E138: 68.18497093 | F138: 128.3173635 | G138: 218.139518 | H138: 0.4470093641 | I138: 24.01535978 | J138: 19.2909331 | K138: 32.47210256 | L138: 1.683995816 | M138: 14.20909549 | N138: 0.1 | O138: -1 | P138: 1
A139: 1997 - Aug | B139: 9.166666667 | C139: 1111 | D139: 0.7176987649 | E139: 67.78965581 | F139: 128.5503922 | G139: 218.5356668 | H139: 0.430619259 | I139: 23.84025456 | J139: 19.30552245 | K139: 32.52123717 | L139: 1.907441775 | M139: 15.77839448 | N139: 0.1 | O139: -1 | P139: 1
A140: 1997 - Sep | B140: 9.25 | C140: 1111 | D140: 0.6944182039 | E140: 67.44920532 | F140: 128.7946671 | G140: 218.9509341 | H140: 0.4166509223 | I140: 23.67037126 | J140: 19.32079935 | K140: 32.57272713 | L140: 2.039134231 | M140: 17.123705 | N140: 0.1 | O140: -1 | P140: 1
A141: 1997 - Oct | B141: 9.333333333 | C141: 1111 | D141: 0.6754618988 | E141: 67.15975676 | F141: 129.0542985 | G141: 219.3923075 | H141: 0.4052771393 | I141: 23.50631866 | J141: 19.33701813 | K141: 32.62743619 | L141: 2.174447137 | M141: 18.45135659 | N141: 0.1 | O141: -1 | P141: 1
A142: 1997 - Nov | B142: 9.416666667 | C142: 1111 | D142: 0.6579488731 | E142: 66.87195371 | F142: 129.3130201 | G142: 219.8321342 | H142: 0.3947693238 | I142: 23.3450054 | J142: 19.35316114 | K142: 32.6819353 | L142: 2.166417258 | M142: 18.27215805 | N142: 0.1 | O142: -1 | P142: 1
A143: 1997 - Dec | B143: 9.5 | C143: 1111 | D143: 0.641702685 | E143: 66.58706267 | F143: 129.5704807 | G143: 220.2698172 | H143: 0.385021611 | I143: 23.18629654 | J143: 19.36920679 | K143: 32.73615074 | L143: 2.160272977 | M143: 18.85016915 | N143: 0.1 | O143: -1 | P143: 1
A144: 1998 - Jan | B144: 9.583333333 | C144: 1111 | D144: 0.6261317116 | E144: 66.29096555 | F144: 129.823535 | G144: 220.7000094 | H144: 0.375679027 | I144: 23.0295662 | J144: 19.3849597 | K144: 32.78942082 | L144: 2.116461424 | M144: 17.99778409 | N144: 0.1 | O144: -1 | P144: 1
A145: 1998 - Feb | B145: 9.666666667 | C145: 1111 | D145: 0.604869696 | E145: 65.86627134 | F145: 130.0311831 | G145: 221.0530112 | H145: 0.3629218176 | I145: 22.86755288 | J145: 19.39787266 | K145: 32.83311958 | L145: 1.721867123 | M145: 14.68475889 | N145: 0.1 | O145: -1 | P145: 1
A146: 1998 - Mar | B146: 9.75 | C146: 1111 | D146: 0.5862329478 | E146: 65.45976236 | F146: 130.2442628 | G146: 221.4152468 | H146: 0.3517397687 | I146: 22.70925608 | J146: 19.4111109 | K146: 32.87794933 | L146: 1.760302142 | M146: 14.6249666 | N146: 0.1 | O146: -1 | P146: 1
A147: 1998 - Apr | B147: 9.833333333 | C147: 1111 | D147: 0.5627707741 | E147: 64.93937825 | F147: 130.4157714 | G147: 221.7068113 | H147: 0.3376624645 | I147: 22.54645539 | J147: 19.42175722 | K147: 32.91402405 | L147: 1.402954253 | M147: 12.14246301 | N147: 0.1 | O147: -1 | P147: 1
A148: 1998 - May | B148: 9.916666667 | C148: 1111 | D148: 0.5378999219 | E148: 64.35772519 | F148: 130.5652128 | G148: 221.9608617 | H148: 0.3227399532 | I148: 22.38260791 | J148: 19.43102708 | K148: 32.94545078 | L148: 1.20179513 | M148: 10.29844273 | N148: 0.1 | O148: -1 | P148: 1
A149: 1998 - Jun | B149: 10 | C149: 1111 | D149: 0.5130250193 | E149: 63.7494786 | F149: 130.7009243 | G149: 222.1915713 | H149: 0.3078150116 | I149: 22.21915713 | J149: 19.43943991 | K149: 32.97398499 | L149: 1.092930628 | M149: 9.330126436 | N149: 0.1 | O149: -1 | P149: 1

Sheet FR decline Monthly Ex 8 ANS (hidden)
A2: Run type : | B2: SingleSite | E2: Stand initialisation and site factor data | K2: Optional parameter block | R2: Observed data
A3: Site : | B3: SE Qld | F3: Date planted = | G3: 1988/6 | I3: Latitude = | J3: -26 | L3: Parameters | Q3: (The format of this block of observed data
A4: Species : | B4: Trial | F4: Initial year = | G4: 1 | I4: Fertility rating = | J4: 1 | L4: alpha = | M4: 0.052 | Q4: is quite arbitrary and is of no concern to
A5: Climate data : | B5: Qld Metdata | F5: Initial month = | G5: June | I5: Soil class = | J5: cl | L5: gammaF1 = | M5: 0.085 | Q5: 3PGpjs - the user has placed it here and
A6: Met station : | B6: Yearly Data | F6: End age = | G6: 10 | I6: Maximum ASW = | J6: 300 | L6: poolFractn = | M6: 0 | Q6: uses it to plot observed data.)
A7: Title : | B7: FR declines with stand age | F7: Initial WF = | G7: 7 | I7: Minimum ASW = | J7: 0
F8: Initial WR = | G8: 2 | I8: Atmospheric CO2 = | J8: 350 | K8: Silvicultural events | R8: Age | S8: standVol | T8: LAI
F9: Initial WS = | G9: 5 | L9: Fertility | N9: Irrigation
F10: Initial stocking = | G10: 1111 | L10: Age | M10: FR | N10: Age | O10: Ml/ha/yr | R10: 0.83 | S10: 2.730293817
F11: Initial ASW = | G11: 300 | L11: 2 | M11: 1 | N11: 6 | O11: 4 | R11: 1.08 | S11: 9.339603211 | T11: 4.46
L12: 3 | M12: 0.8 | N12: 6 | O12: -1 | R12: 1.33 | S12: 19.05384691
L13: 5 | M13: 0.5 | R13: 1.58 | S13: 26.62194645 | T13: 4.81
L14: 7 | M14: 0.3 | R14: 1.83 | S14: 42.97620438 | T14: 4.79
L15: 99 | M15: 0.1
F16: Output details | R16: 2.08 | S16: 60.98791167
G17: Output frequency : | H17: a | R17: 2.33 | S17: 72.89770122 | T17: 5.17 | V17: ANSWERS:
G18: Output data : | H18: FR, Irrig, fSW | R18: 2.58 | S18: 83.94959967
G19: Output sheet : | R19: 2.83 | S19: 95.85868178 | V19: 1) Soil water supply (fSW) never becomes limiting so
G20: Output ages : | H20: 1y 4m, 2y 1m, 2y 10m, 3y 7m, 4y 7m, 6y 5m, 7y 4m, 10y | R20: 3.08 | S20: 101.1090528 | T20: 3.86 | V20: no variation occurs among years (see Qld Metdata)
R21: 3.58 | S21: 114.1160268
R22: 4.58 | S22: 140.3976957 | V22: 2) Adding max fertilizer at age 5 improves MAI by 2.7 m3/ha at age 10; maintaining FR =0.5 for all years increases MAI by 3.1 m3/ha
R23: 6.5 | S23: 192.2696334 | V23: Maintaining FR = 0.5 does slightly better (3.1) based on last 3 years
R24: 7.33 | S24: 204.9150965 | V24: LAI drops because of age-related allometrics after age 5
R25: 9.92 | S25: 221.6892464
V26: 3) best to add fertilizer when trees are young, when the potential to maximize LAI occurs.
R27: CASE I | S27: CASE II | U27: CASE III
R28: FR=1 @ 2 yr | S28: FR=1 @ 2 & 5yrs | T28: CASE II-I | U28: FR=0.5 all | V28: CASE III-I
Q29: AGE | R29: MAI | S29: MAI | T29: Difference | V29: Difference
Q30: 1
Q31: 1.333333333
Q32: 2.083333333
Q33: 2.833333333
Q34: 3.583333333
Q35: 4.583333333
Q36: 6.416666667
A37: #Output from 3PGpjs 2.7 / 3-PG vsn 1 Sep2009 | Q37: 7.33
A38: Stand development for SE Qld | Q38: 10
A39: FR declines with stand age
A40: Year & month | B40: Stand age | C40: Stems | D40: Foliage DM | E40: Root DM | F40: Stem DM | G40: Stand volume | H40: LAI | I40: MAI | J40: Mean DBH | K40: Basal area | L40: GPP | M40: Penman transp. | N40: FR | O40: Applied irrig. | P40: fSW
A41: 1989 - Jun | B41: 1 | C41: 1111 | D41: 7 | E41: 2 | F41: 5 | G41: 8.5 | H41: 4.2 | I41: 8.5 | J41: 4.990435824 | K41: 2.173105898
A42: 1989 - Jul | B42: 1.083333333 | C42: 1111 | D42: 7.426706096 | E42: 3.033947786 | F42: 6.545742545 | G42: 11.12776233 | H42: 4.456023658 | I42: 10.27178061 | J42: 5.583208628 | K42: 2.720017219 | L42: 7.100843462 | M42: 85.68177404 | N42: 1 | O42: 4 | P42: 1
A43: 1989 - Aug | B43: 1.166666667 | C43: 1111 | D43: 7.855475569 | E43: 4.30386785 | F43: 8.423439599 | G43: 14.31984732 | H43: 4.713285341 | I43: 12.27415484 | J43: 6.201854656 | K43: 3.356194401 | L43: 8.5085725 | M43: 100.1263444 | N43: 1 | O43: 4 | P43: 0.9999808953
A44: 1989 - Sep | B44: 1.25 | C44: 1111 | D44: 8.232812854 | E44: 5.774533295 | F44: 10.54016695 | G44: 17.91828382 | H44: 4.939687712 | I44: 14.33462706 | J44: 6.809064176 | K44: 4.045561384 | L44: 9.542757524 | M44: 113.798987 | N44: 1 | O44: 4 | P44: 1
A45: 1989 - Oct | B45: 1.333333333 | C45: 1111 | D45: 8.575050028 | E45: 7.404803407 | F45: 12.93306573 | G45: 21.98621174 | H45: 5.145030017 | I45: 16.4896588 | J45: 7.414978997 | K45: 4.797597293 | L45: 10.59972204 | M45: 126.8475003 | N45: 1 | O45: 4 | P45: 1
A46: 1989 - Nov | B46: 1.416666667 | C46: 1111 | D46: 8.831705947 | E46: 9.062968893 | F46: 15.44528963 | G46: 26.25699237 | H46: 5.299023568 | I46: 18.53434755 | J46: 7.984223094 | K46: 5.562490308 | L46: 10.92538668 | M46: 129.0577004 | N46: 1 | O46: 4 | P46: 1
A47: 1989 - Dec | B47: 1.5 | C47: 1111 | D47: 9.016126262 | E47: 10.75260936 | F47: 18.05974335 | G47: 30.70156369 | H47: 5.409675757 | I47: 20.46770913 | J47: 8.521789372 | K47: 6.336734803 | L47: 11.22495317 | M47: 136.7537294 | N47: 1 | O47: 4 | P47: 1
A48: 1990 - Jan | B48: 1.583333333 | C48: 1111 | D48: 9.132731232 | E48: 12.41674242 | F48: 20.73342066 | G48: 35.24681513 | H48: 5.479638739 | I48: 22.2611464 | J48: 9.026385405 | K48: 7.109379314 | L48: 11.29584832 | M48: 133.6006337 | N48: 1 | O48: 4 | P48: 1
A49: 1990 - Feb | B49: 1.666666667 | C49: 1111 | D49: 9.066101654 | E49: 13.72691913 | F49: 23.0076992 | G49: 39.11308864 | H49: 5.439660992 | I49: 23.46785318 | J49: 9.426449301 | K49: 7.753543228 | L49: 9.420791242 | M49: 111.1900829 | N49: 1 | O49: 4 | P49: 1
A50: 1990 - Mar | B50: 1.75 | C50: 1111 | D50: 9.008096305 | E50: 15.08590839 | F50: 25.43200215 | G50: 43.23440365 | H50: 5.404857783 | I50: 24.70537351 | J50: 9.828250181 | K50: 8.428617519 | L50: 9.92557637 | M50: 114.3367458 | N50: 1 | O50: 4 | P50: 1
A51: 1990 - Apr | B51: 1.833333333 | C51: 1111 | D51: 8.812194899 | E51: 16.11632517 | F51: 27.4524089 | G51: 46.66909513 | H51: 5.287316939 | I51: 25.45587007 | J51: 10.14634202 | K51: 8.983031778 | L51: 8.130429289 | M51: 97.39477748 | N51: 1 | O51: 4 | P51: 1
A52: 1990 - May | B52: 1.916666667 | C52: 1111 | D52: 8.560379373 | E52: 16.94988774 | F52: 29.28098892 | G52: 49.77768116 | H52: 5.136227624 | I52: 25.97096408 | J52: 10.42265506 | K52: 9.478959558 | L52: 7.199259282 | M52: 85.214399 | N52: 1 | O52: 4 | P52: 1
A53: 1990 - Jun | B53: 2 | C53: 1111 | D53: 8.288169699 | E53: 17.71195968 | F53: 31.00972555 | G53: 52.71653344 | H53: 4.97290182 | I53: 26.35826672 | J53: 10.6747679 | K53: 9.943077451 | L53: 6.784457382 | M53: 80.76119772 | N53: 1 | O53: 4 | P53: 1
A54: 1990 - Jul | B54: 2.083333333 | C54: 1111 | D54: 8.068809166 | E54: 18.5576243 | F54: 32.90631415 | G54: 55.94073406 | H54: 4.841285499 | I54: 26.85155235 | J54: 10.94209942 | K54: 10.44732856 | L54: 7.41522355 | M54: 85.65114549 | N54: 1 | O54: 4 | P54: 0.9995670267
A55: 1990 - Aug | B55: 2.166666667 | C55: 1111 | D55: 7.887862838 | E55: 19.79436852 | F55: 34.93259374 | G55: 59.38540936 | H55: 4.732717703 | I55: 27.40865047 | J55: 11.21795828 | K55: 10.98073931 | L55: 8.597783699 | M55: 99.2587125 | N55: 0.8 | O55: 4 | P55: 0.9895329705
A56: 1990 - Sep | B56: 2.25 | C56: 1111 | D56: 7.74184979 | E56: 21.21486256 | F56: 37.08897157 | G56: 63.05125167 | H56: 4.645109874 | I56: 28.02277852 | J56: 11.5014599 | K56: 11.54276568 | L56: 9.350293022 | M56: 111.7762011 | N56: 0.8 | O56: 4 | P56: 0.9788447491
A57: 1990 - Oct | B57: 2.333333333 | C57: 1111 | D57: 7.6602288 | E57: 22.80567585 | F57: 39.51473003 | G57: 67.17504105 | H57: 4.59613728 | I57: 28.78930331 | J57: 11.80911172 | K57: 12.168538 | L57: 10.44422507 | M57: 126.8470157 | N57: 0.8 | O57: 4 | P57: 1
A58: 1990 - Nov | B58: 2.416666667 | C58: 1111 | D58: 7.585398481 | E58: 24.40804368 | F58: 41.9965323 | G58: 71.3941049 | H58: 4.551239089 | I58: 29.54238824 | J58: 12.11267049 | K58: 12.80217462 | L58: 10.64015594 | M58: 129.0571373 | N58: 0.8 | O58: 4 | P58: 1
A59: 1990 - Dec | B59: 2.5 | C59: 1111 | D59: 7.515775962 | E59: 26.03019953 | F59: 44.52802568 | G59: 75.69764365 | H59: 4.509465577 | I59: 30.27905746 | J59: 12.41170866 | K59: 13.4420989 | L59: 10.83779513 | M59: 136.7530508 | N59: 0.8 | O59: 4 | P59: 1
A60: 1991 - Jan | B60: 2.583333333 | C60: 1111 | D60: 7.444326551 | E60: 27.61618181 | F60: 47.07767509 | G60: 80.03204766 | H60: 4.466595931 | I60: 30.98014748 | J60: 12.70302715 | K60: 14.08051024 | L60: 10.83552082 | M60: 133.5998857 | N60: 0.8 | O60: 4 | P60: 1
A61: 1991 - Feb | B61: 2.666666667 | C61: 1111 | D61: 7.279512584 | E61: 28.81675014 | F61: 49.22157487 | G61: 83.67667728 | H61: 4.36770755 | I61: 31.37875398 | J61: 12.94093831 | K61: 14.61286844 | L61: 8.991766883 | M61: 111.1893859 | N61: 0.8 | O61: 4 | P61: 1
A62: 1991 - Mar | B62: 2.75 | C62: 1111 | D62: 7.147156989 | E62: 30.06645291 | F62: 51.48523546 | G62: 87.52490028 | H62: 4.288294193 | I62: 31.82723646 | J62: 13.18566688 | K62: 15.170788 | L62: 9.429057658 | M62: 114.3359447 | N62: 0.8 | O62: 4 | P62: 1
A63: 1991 - Apr | B63: 2.833333333 | C63: 1111 | D63: 6.935722125 | E63: 30.96340165 | F63: 53.35741958 | G63: 90.70761328 | H63: 4.161433275 | I63: 32.01445175 | J63: 13.38336988 | K63: 15.62913355 | L63: 7.693529599 | M63: 97.39402048 | N63: 0.8 | O63: 4 | P63: 1
A64: 1991 - May | B64: 2.916666667 | C64: 1111 | D64: 6.698086139 | E64: 31.65091344 | F64: 55.0415813 | G64: 93.57068822 | H64: 4.018851683 | I64: 32.08137882 | J64: 13.55778833 | K64: 16.0391607 | L64: 6.782683838 | M64: 85.21364381 | N64: 0.8 | O64: 4 | P64: 0.9999996221
A65: 1991 - Jun | B65: 3 | C65: 1111 | D65: 6.455421234 | E65: 32.2596664 | F65: 56.62197986 | G65: 96.25736576 | H65: 3.87325274 | I65: 32.08578859 | J65: 13.7186511 | K65: 16.42202703 | L65: 6.362720587 | M65: 80.76043193 | N65: 0.8 | O65: 4 | P65: 1
A66: 1991 - Jul | B66: 3.083333333 | C66: 1111 | D66: 6.207476887 | E66: 33.25938471 | F66: 58.09139441 | G66: 98.7553705 | H66: 3.724486132 | I66: 32.02876881 | J66: 13.86588382 | K66: 16.7764109 | L66: 6.922812459 | M66: 85.65973376 | N66: 0.5 | O66: 4 | P66: 0.9997020166
A67: 1991 - Aug | B67: 3.166666667 | C67: 1111 | D67: 6.020674653 | E67: 34.52536351 | F67: 59.77143624 | G67: 101.6114416 | H67: 3.612404792 | I67: 32.08782367 | J67: 14.03158327 | K67: 17.17976807 | L67: 8.054673689 | M67: 100.1246751 | N67: 0.5 | O67: 4 | P67: 0.9999782348
A68: 1991 - Sep | B68: 3.25 | C68: 1111 | D68: 5.86946753 | E68: 35.99264762 | F68: 61.5662401 | G68: 104.6626082 | H68: 3.521680518 | I68: 32.20387944 | J68: 14.20562687 | K68: 17.6085967 | L68: 8.809545701 | M68: 113.7971399 | N68: 0.5 | O68: 4 | P68: 1
A69: 1991 - Oct | B69: 3.333333333 | C69: 1111 | D69: 5.757969871 | E69: 37.62377402 | F69: 63.51448817 | G69: 107.9746299 | H69: 3.454781923 | I69: 32.39238897 | J69: 14.391232 | K69: 18.07173665 | L69: 9.588616229 | M69: 126.8452196 | N69: 0.5 | O69: 4 | P69: 1
A70: 1991 - Nov | B70: 3.416666667 | C70: 1111 | D70: 5.658045047 | E70: 39.26112684 | F70: 65.49437264 | G70: 111.3404335 | H70: 3.394827028 | I70: 32.58744395 | J70: 14.5764791 | K70: 18.53997776 | L70: 9.725706121 | M70: 129.0551425 | N70: 0.5 | O70: 4 | P70: 1
A71: 1991 - Dec | B71: 3.5 | C71: 1111 | D71: 5.567672642 | E71: 40.91244518 | F71: 67.50069466 | G71: 114.7511809 | H71: 3.340603585 | I71: 32.78605169 | J71: 14.7608967 | K71: 19.01207076 | L71: 9.866188837 | M71: 136.7507461 | N71: 0.5 | O71: 4 | P71: 1
A72: 1992 - Jan | B72: 3.583333333 | C72: 1111 | D72: 5.481672954 | E72: 42.5201793 | F72: 69.51074817 | G72: 118.1682719 | H72: 3.289003773 | I72: 32.97719216 | J72: 14.94247798 | K72: 19.48270207 | L72: 9.827063956 | M72: 133.5974438 | N72: 0.5 | O72: 4 | P72: 0.9999999995
A73: 1992 - Feb | B73: 3.666666667 | C73: 1111 | D73: 5.336787947 | E73: 43.69725895 | F73: 71.19408891 | G73: 121.0299511 | H73: 3.202072768 | I73: 33.00816849 | J73: 15.09220214 | K73: 19.8750929 | L73: 8.126118495 | M73: 110.0430556 | N73: 0.5 | O73: 4 | P73: 1
A74: 1992 - Mar | B74: 3.75 | C74: 1111 | D74: 5.217561245 | E74: 44.92631687 | F74: 72.96185976 | G74: 124.0351616 | H74: 3.130536747 | I74: 33.07604309 | J74: 15.24722923 | K74: 20.28550387 | L74: 8.482308202 | M74: 110.6538979 | N74: 0.5 | O74: 4 | P74: 1
A75: 1992 - Apr | B75: 3.833333333 | C75: 1111 | D75: 5.047249595 | E75: 45.7624949 | F75: 74.41821521 | G75: 126.5109659 | H75: 3.028349757 | I75: 33.00286066 | J75: 15.37330797 | K75: 20.62237098 | L75: 6.892781315 | M75: 92.51369342 | N75: 0.5 | O75: 4 | P75: 1
A76: 1992 - May | B76: 3.916666667 | C76: 1111 | D76: 4.86146337 | E76: 46.36850316 | F76: 75.72372875 | G76: 128.7303389 | H76: 2.916878022 | I76: 32.86732057 | J76: 15.48511029 | K76: 20.9234139 | L76: 6.045080487 | M76: 78.78290862 | N76: 0.5 | O76: 4 | P76: 1
A77: 1992 - Jun | B77: 4 | C77: 1111 | D77: 4.673575513 | E77: 46.88102682 | F77: 76.9404452 | G77: 130.7987568 | H77: 2.804145308 | I77: 32.69968921 | J77: 15.58830027 | K77: 21.20320274 | L77: 5.638517581 | M77: 72.35565179 | N77: 0.5 | O77: 4 | P77: 0.9999968909
A78: 1992 - Jul | B78: 4.083333333 | C78: 1111 | D78: 4.518951113 | E78: 47.48497516 | F78: 78.25772681 | G78: 133.0381356 | H78: 2.711370668 | I78: 32.58076789 | J78: 15.69895165 | K78: 21.50528706 | L78: 6.100157988 | M78: 74.25948016 | N78: 0.5 | O78: 4 | P78: 1
A79: 1992 - Aug | B79: 4.166666667 | C79: 1111 | D79: 4.409676118 | E79: 48.32350386 | F79: 79.7585854 | G79: 135.5895952 | H79: 2.645805671 | I79: 32.54150284 | J79: 15.8237073 | K79: 21.84843945 | L79: 7.077653983 | M79: 84.22020389 | N79: 0.5 | O79: 4 | P79: 1
A80: 1992 - Sep | B80: 4.25 | C80: 1111 | D80: 4.326071886 | E80: 49.34128544 | F80: 81.3593131 | G80: 138.3108323 | H80: 2.595643132 | I80: 32.54372524 | J80: 15.95526434 | K80: 22.21324199 | L80: 7.733148505 | M80: 93.54228716 | N80: 0.5 | O80: 4 | P80: 1
A81: 1992 - Oct | B81: 4.333333333 | C81: 1111 | D81: 4.272087151 | E81: 50.50675183 | F81: 83.09559235 | G81: 141.262507 | H81: 2.563252291 | I81: 32.59904008 | J81: 16.0962658 | K81: 22.60758697 | L81: 8.416161932 | M81: 102.5131707 | N81: 0.5 | O81: 4 | P81: 1
A82: 1992 - Nov | B82: 4.416666667 | C82: 1111 | D82: 4.225567593 | E82: 51.68347576 | F82: 84.86053926 | G82: 144.2629167 | H82: 2.535340556 | I82: 32.6633019 | J82: 16.23784474 | K82: 23.00703799 | L82: 8.5444252 | M82: 103.1664248 | N82: 0.5 | O82: 4 | P82: 1
A83: 1992 - Dec | B83: 4.5 | C83: 1111 | D83: 4.185098753 | E83: 52.87872665 | F83: 86.65003893 | G83: 147.3050662 | H83: 2.511059252 | I83: 32.73445915 | J83: 16.37965025 | K83: 23.41063472 | L83: 8.678100027 | M83: 108.2521614 | N83: 0.5 | O83: 4 | P83: 1
A84: 1993 - Jan | B84: 4.583333333 | C84: 1111 | D84: 4.146630465 | E84: 54.04220363 | F84: 88.44426506 | G84: 150.3552506 | H84: 2.487978279 | I84: 32.80478195 | J84: 16.52012537 | K84: 23.81390507 | L84: 8.655636295 | M84: 104.9110004 | N84: 0.5 | O84: 4 | P84: 1
A85: 1993 - Feb | B85: 4.666666667 | C85: 1111 | D85: 4.058230884 | E85: 54.83244709 | F85: 89.94816775 | G85: 152.9118852 | H85: 2.43493853 | I85: 32.76683254 | J85: 16.63659485 | K85: 24.15087228 | L85: 7.167751442 | M85: 86.70499893 | N85: 0.5 | O85: 4 | P85: 1
A86: 1993 - Mar | B86: 4.75 | C86: 1111 | D86: 3.988794271 | E86: 55.67183516 | F86: 91.52638394 | G86: 155.5948527 | H86: 2.393276563 | I86: 32.75681109 | J86: 16.75760439 | K86: 24.50348224 | L86: 7.480008399 | M86: 87.54290211 | N86: 0.5 | O86: 4 | P86: 1
A87: 1993 - Apr | B87: 4.833333333 | C87: 1111 | D87: 3.875350732 | E87: 56.16889543 | F87: 92.82644688 | G87: 157.8049597 | H87: 2.325210439 | I87: 32.64930201 | J87: 16.85637533 | K87: 24.7931853 | L87: 6.080435514 | M87: 73.56005804 | N87: 0.5 | O87: 4 | P87: 1
A88: 1993 - May | B88: 4.916666667 | C88: 1111 | D88: 3.746901435 | E88: 56.46519719 | F88: 93.99009159 | G88: 159.7831557 | H88: 2.248140861 | I88: 32.49826896 | J88: 16.94409991 | K88: 25.05191604 | L88: 5.326458304 | M88: 62.92961998 | N88: 0.5 | O88: 4 | P88: 1
A89: 1993 - Jun | B89: 5 | C89: 1111 | D89: 3.614522035 | E89: 56.68084402 | F89: 95.07237512 | G89: 161.6230377 | H89: 2.168713221 | I89: 32.32460754 | J89: 17.02512398 | K89: 25.29207766 | L89: 4.959607531 | M89: 57.90578495 | N89: 0.5 | O89: 4 | P89: 1
A90: 1993 - Jul | B90: 5.083333333 | C90: 1111 | D90: 3.507535694 | E90: 56.97817764 | F90: 96.24147885 | G90: 163.610514 | H90: 2.104521416 | I90: 32.18567489 | J90: 17.11204551 | K90: 25.55099361 | L90: 5.355102193 | M90: 59.533215 | N90: 0.5 | O90: 4 | P90: 1
A91: 1993 - Aug | B91: 5.166666667 | C91: 1111 | D91: 3.396564943 | E91: 57.75573547 | F91: 97.33882267 | G91: 165.4759985 | H91: 2.037938966 | I91: 32.02761262 | J91: 17.19307313 | K91: 25.79354063 | L91: 6.205838494 | M91: 67.55850961 | N91: 0.3 | O91: 4 | P91: 1
A92: 1993 - Sep | B92: 5.25 | C92: 1111 | D92: 3.305084932 | E92: 58.6968754 | F92: 98.49964538 | G92: 167.4493971 | H92: 1.983050959 | I92: 31.89512327 | J92: 17.27821012 | K92: 26.04962301 | L92: 6.735163155 | M92: 74.32954546 | N92: 0.3 | O92: 4 | P92: 0.9999673066
A93: 1993 - Oct | B93: 5.333333333 | C93: 1111 | D93: 3.234896515 | E93: 59.77346283 | F93: 99.74507618 | G93: 169.5666295 | H93: 1.940937909 | I93: 31.79374303 | J93: 17.36890411 | K93: 26.3238117 | L93: 7.262159907 | M93: 80.59825973 | N93: 0.3 | O93: 4 | P93: 0.9972503857
A94: 1993 - Nov | B94: 5.416666667 | C94: 1111 | D94: 3.17012499 | E94: 60.84278427 | F94: 100.9926315 | G94: 171.6874735 | H94: 1.902074994 | I94: 31.69614895 | J94: 17.45909293 | K94: 26.59789663 | L94: 7.284411371 | M94: 80.03427728 | N94: 0.3 | O94: 4 | P94: 0.9916973734
A95: 1993 - Dec | B95: 5.5 | C95: 1111 | D95: 3.107108338 | E95: 61.89683746 | F95: 102.2231651 | G95: 173.7793806 | H95: 1.864265003 | I95: 31.59625102 | J95: 17.54741678 | K95: 26.86768965 | L95: 7.241856442 | M95: 82.13379922 | N95: 0.3 | O95: 4 | P95: 0.9771770407
A96: 1994 - Jan | B96: 5.583333333 | C96: 1111 | D96: 3.054164613 | E96: 62.94197926 | F96: 103.4870558 | G96: 175.9279948 | H96: 1.832498768 | I96: 31.50949161 | J96: 17.63749159 | K96: 27.14423332 | L96: 7.337543759 | M96: 80.51029739 | N96: 0.3 | O96: 4 | P96: 0.9999270943
A97: 1994 - Feb | B97: 5.666666667 | C97: 1111 | D97: 2.969789367 | E97: 63.60882815 | F97: 104.5403127 | G97: 177.7185315 | H97: 1.78187362 | I97: 31.3620938 | J97: 17.71206597 | K97: 27.37425965 | L97: 6.041413176 | M97: 66.10856971 | N97: 0.3 | O97: 4 | P97: 0.9999999047
A98: 1994 - Mar | B98: 5.75 | C98: 1111 | D98: 2.899421566 | E98: 64.31902527 | F98: 105.6384672 | G98: 179.5853942 | H98: 1.739652939 | I98: 31.23224247 | J98: 17.78935401 | K98: 27.61368053 | L98: 6.264996543 | M98: 66.34114725 | N98: 0.3 | O98: 4 | P98: 1
A99: 1994 - Apr | B99: 5.833333333 | C99: 1111 | D99: 2.80153054 | E99: 64.68550649 | F99: 106.5377535 | G99: 181.1141809 | H99: 1.680918324 | I99: 31.0481453 | J99: 17.85229739 | K99: 27.80943503 | L99: 5.061941937 | M99: 55.43655709 | N99: 0.3 | O99: 4 | P99: 1
A100: 1994 - May | B100: 5.916666667 | C100: 1111 | D100: 2.695218379 | E100: 64.85347208 | F100: 107.3380206 | G100: 182.4746351 | H100: 1.617131027 | I100: 30.84078339 | J100: 17.90805004 | K100: 27.98340376 | L100: 4.404964363 | M100: 47.23508926 | N100: 0.3 | O100: 4 | P100: 1
A101: 1994 - Jun | B101: 6 | C101: 1111 | D101: 2.587527867 | E101: 64.93485984 | F101: 108.0769549 | G101: 183.7308233 | H101: 1.55251672 | I101: 30.62180388 | J101: 17.95931487 | K101: 28.14384757 | L101: 4.073462024 | M101: 43.21414452 | N101: 0.3 | O101: 4 | P101: 1
A102: 1994 - Jul | B102: 6.083333333 | C102: 1111 | D102: 2.497469939 | E102: 65.09123398 | F102: 108.869361 | G102: 185.0779137 | H102: 1.498481963 | I102: 30.42376664 | J102: 18.01406273 | K102: 28.31569865 | L102: 4.367415115 | M102: 44.18326884 | N102: 0.3 | O102: 4 | P102: 1
A103: 1994 - Aug | B103: 6.166666667 | C103: 1111 | D103: 2.431388133 | E103: 65.43705604 | F103: 109.763582 | G103: 186.5980895 | H103: 1.45883288 | I103: 30.25914965 | J103: 18.0755666 | K103: 28.50938046 | L103: 5.026839882 | M103: 49.76453893 | N103: 0.3 | O103: -1 | P103: 1
A104: 1994 - Sep | B104: 6.25 | C104: 1111 | D104: 2.378819236 | E104: 65.91929851 | F104: 110.7087476 | G104: 188.2048708 | H104: 1.427291542 | I104: 30.11277933 | J104: 18.14025749 | K104: 28.71381083 | L104: 5.453325346 | M104: 54.82720531 | N104: 0.3 | O104: -1 | P104: 0.9993438326
A105: 1994 - Oct | B105: 6.333333333 | C105: 1111 | D105: 2.339688241 | E105: 66.50737728 | F105: 111.711876 | G105: 189.9101892 | H105: 1.403812945 | I105: 29.98581934 | J105: 18.20856414 | K105: 28.93046013 | L105: 5.836309191 | M105: 59.22123523 | N105: 0.3 | O105: -1 | P105: 0.988307261
A106: 1994 - Nov | B106: 6.416666667 | C106: 1111 | D106: 2.307493853 | E106: 67.11418385 | F106: 112.7403945 | G106: 191.6586706 | H106: 1.384496312 | I106: 29.86888373 | J106: 18.27822921 | K106: 29.15225664 | L106: 5.956627286 | M106: 59.91831115 | N106: 0.3 | O106: -1 | P106: 0.9987805528
A107: 1994 - Dec | B107: 6.5 | C107: 1111 | D107: 2.279279501 | E107: 67.73510239 | F107: 113.7798515 | G107: 193.4257475 | H107: 1.367567701 | I107: 29.7578073 | J107: 18.34825952 | K107: 29.37606963 | L107: 6.031938116 | M107: 62.71089778 | N107: 0.3 | O107: -1 | P107: 1
A108: 1995 - Jan | B108: 6.583333333 | C108: 1111 | D108: 2.252658463 | E108: 68.33125944 | F108: 114.8175904 | G108: 195.1899037 | H108: 1.351595078 | I108: 29.6490993 | J108: 18.41780279 | K108: 29.59917301 | L108: 5.993702657 | M108: 60.62917049 | N108: 0.3 | O108: -1 | P108: 1
A109: 1995 - Feb | B109: 6.666666667 | C109: 1111 | D109: 2.200288902 | E109: 68.6251478 | F109: 115.6840861 | G109: 196.6629463 | H109: 1.320173341 | I109: 29.49944195 | J109: 18.47558995 | K109: 29.78520339 | L109: 4.945658132 | M109: 50.04687028 | N109: 0.3 | O109: -1 | P109: 1
A110: 1995 - Mar | B110: 6.75 | C110: 1111 | D110: 2.158007013 | E110: 68.95925796 | F110: 116.5880201 | G110: 198.1996342 | H110: 1.294804208 | I110: 29.36290877 | J110: 18.53560544 | K110: 29.97902421 | L110: 5.132264057 | M110: 50.41382828 | N110: 0.3 | O110: -1 | P110: 0.9999998959
A111: 1995 - Apr | B111: 6.833333333 | C111: 1111 | D111: 2.092872911 | E111: 69.01661002 | F111: 117.3287716 | G111: 199.4589116 | H111: 1.255723747 | I111: 29.18910902 | J111: 18.58458459 | K111: 30.13766884 | L111: 4.150614566 | M111: 42.30528493 | N111: 0.3 | O111: -1 | P111: 0.9997385885
A112: 1995 - May | B112: 6.916666667 | C112: 1111 | D112: 2.020026803 | E112: 68.91481058 | F112: 117.9879956 | G112: 200.5795925 | H112: 1.212016082 | I112: 28.99945916 | J112: 18.62802161 | K112: 30.27871264 | L112: 3.612174167 | M112: 36.19780744 | N112: 0.3 | O112: -1 | P112: 0.9999969988
A113: 1995 - Jun | B113: 7 | C113: 1111 | D113: 1.945056381 | E113: 68.74498745 | F113: 118.5962003 | G113: 201.6135405 | H113: 1.167033829 | I113: 28.80193435 | J113: 18.66797151 | K113: 30.40872417 | L113: 3.337947977 | M113: 33.18313318 | N113: 0.3 | O113: -1 | P113: 1
A114: 1995 - Jul | B114: 7.083333333 | C114: 1111 | D114: 1.88316673 | E114: 68.63927941 | F114: 119.2477325 | G114: 202.7211452 | H114: 1.129900038 | I114: 28.6194558 | J114: 18.71063502 | K114: 30.5478743 | L114: 3.575402421 | M114: 33.98954848 | N114: 0.3 | O114: -1 | P114: 1
A115: 1995 - Aug | B115: 7.166666667 | C115: 1111 | D115: 1.802483727 | E115: 68.96276229 | F115: 119.7486987 | G115: 203.5727878 | H115: 1.081490236 | I115: 28.40550528 | J115: 18.74334681 | K115: 30.65478133 | L115: 4.11366909 | M115: 38.32176767 | N115: 0.1 | O115: -1 | P115: 0.9999452808
A116: 1995 - Sep | B116: 7.25 | C116: 1111 | D116: 1.732156453 | E116: 69.38451353 | F116: 120.2724903 | G116: 204.4632335 | H116: 1.039293872 | I116: 28.20182532 | J116: 18.77746378 | K116: 30.76647964 | L116: 4.389081064 | M116: 41.40057478 | N116: 0.1 | O116: -1 | P116: 0.9973537876
A117: 1995 - Oct | B117: 7.333333333 | C117: 1111 | D117: 1.670107806 | E117: 69.86420536 | F117: 120.8116293 | G117: 205.3797698 | H117: 1.002064684 | I117: 28.00633224 | J117: 18.81249 | K117: 30.88136614 | L117: 4.563368388 | M117: 43.36718937 | N117: 0.1 | O117: -1 | P117: 0.9729586295
A118: 1995 - Nov | B118: 7.416666667 | C118: 1111 | D118: 1.614281887 | E118: 70.34648541 | F118: 121.3576096 | G118: 206.3079363 | H118: 0.968569132 | I118: 27.8168004 | J118: 18.84786788 | K118: 30.99762343 | L118: 4.60075892 | M118: 43.23098765 | N118: 0.1 | O118: -1 | P118: 0.9875259704
A119: 1995 - Dec | B119: 7.5 | C119: 1111 | D119: 1.56377259 | E119: 70.83100847 | F119: 121.9080634 | G119: 207.2437078 | H119: 0.9382635541 | I119: 27.63249438 | J119: 18.88344177 | K119: 31.11474508 | L119: 4.631657138 | M119: 44.83081471 | N119: 0.1 | O119: -1 | P119: 0.9995324425
A120: 1996 - Jan | B120: 7.583333333 | C120: 1111 | D120: 1.51582036 | E120: 71.27247232 | F120: 122.4483334 | G120: 208.1621668 | H120: 0.909492216 | I120: 27.44995606 | J120: 18.91826651 | K120: 31.22961418 | L120: 4.530143357 | M120: 42.56682111 | N120: 0.1 | O120: -1 | P120: 1
A121: 1996 - Feb | B121: 7.666666667 | C121: 1111 | D121: 1.456450117 | E121: 71.4199335 | F121: 122.8907565 | G121: 208.9142861 | H121: 0.8738700703 | I121: 27.24968949 | J121: 18.94671754 | K121: 31.32361675 | L121: 3.677544385 | M121: 34.51048663 | N121: 0.1 | O121: -1 | P121: 1
A122: 1996 - Mar | B122: 7.75 | C122: 1111 | D122: 1.403847031 | E122: 71.59013069 | F122: 123.3446989 | G122: 209.6859881 | H122: 0.8423082183 | I122: 27.05625653 | J122: 18.97584731 | K122: 31.42000822 | L122: 3.758795189 | M122: 34.21663954 | N122: 0.1 | O122: -1 | P122: 1
A123: 1996 - Apr | B123: 7.833333333 | C123: 1111 | D123: 1.341710748 | E123: 71.50078872 | F123: 123.7098103 | G123: 210.3066775 | H123: 0.805026449 | I123: 26.84766096 | J123: 18.99923139 | K123: 31.49749417 | L123: 2.993217265 | M123: 28.25954788 | N123: 0.1 | O123: -1 | P123: 1
A124: 1996 - May | B124: 7.916666667 | C124: 1111 | D124: 1.277495039 | E124: 71.26615331 | F124: 124.0282512 | G124: 210.848027 | H124: 0.7664970234 | I124: 26.63343499 | J124: 19.01959354 | K124: 31.56504434 | L124: 2.566270295 | M124: 23.85672247 | N124: 0.1 | O124: -1 | P124: 1
A125: 1996 - Jun | B125: 8 | C125: 1111 | D125: 1.214193736 | E125: 70.9608199 | F125: 124.3179093 | G125: 211.3404458 | H125: 0.7285162414 | I125: 26.41755572 | J125: 19.03808876 | K125: 31.62646376 | L125: 2.337452631 | M125: 21.56563226 | N125: 0.1 | O125: -1 | P125: 1
A126: 1996 - Jul | B126: 8.083333333 | C126: 1111 | D126: 1.15876972 | E126: 70.70286471 | F126: 124.6237815 | G126: 211.8604285 | H126: 0.695261832 | I126: 26.20953755 | J126: 19.05759202 | K126: 31.69129536 | L126: 2.468322953 | M126: 21.79600302 | N126: 0.1 | O126: -1 | P126: 1
A127: 1996 - Aug | B127: 8.166666667 | C127: 1111 | D127: 1.113561703 | E127: 70.56263146 | F127: 124.9651808 | G127: 212.4408073 | H127: 0.6681370219 | I127: 26.01316008 | J127: 19.07932762 | K127: 31.76362584 | L127: 2.797864684 | M127: 24.18791887 | N127: 0.1 | O127: -1 | P127: 1
A128: 1996 - Sep | B128: 8.25 | C128: 1111 | D128: 1.07471872 | E128: 70.49629331 | F128: 125.3230761 | G128: 213.0492294 | H128: 0.6448312318 | I128: 25.82414901 | J128: 19.10207632 | K128: 31.83941591 | L128: 2.991077465 | M128: 26.2271214 | N128: 0.1 | O128: -1 | P128: 0.9999913052
A129: 1996 - Oct | B129: 8.333333333 | C129: 1111 | D129: 1.042608951 | E129: 70.497876 | F129: 125.7033504 | G129: 213.6956957 | H129: 0.6255653706 | I129: 25.64348348 | J129: 19.12620599 | K129: 31.91990557 | L129: 3.188388769 | M129: 28.20853852 | N129: 0.1 | O129: -1 | P129: 0.9999990505
A130: 1996 - Nov | B130: 8.416666667 | C130: 1111 | D130: 1.0129141 | E130: 70.49461148 | F130: 126.0820001 | G130: 214.3394002 | H130: 0.6077484598 | I130: 25.46606735 | J130: 19.1501903 | K130: 32.00001104 | L130: 3.174000489 | M130: 27.87284437 | N130: 0.1 | O130: -1 | P130: 0.9999999991
A131: 1996 - Dec | B131: 8.5 | C131: 1111 | D131: 0.9853444883 | E131: 70.48836489 | F131: 126.4584756 | G131: 214.9794085 | H131: 0.591206693 | I131: 25.29169512 | J131: 19.17399527 | K131: 32.07961681 | L131: 3.162076923 | M131: 28.6936122 | N131: 0.1 | O131: -1 | P131: 1
A132: 1997 - Jan | B132: 8.583333333 | C132: 1111 | D132: 0.9590029506 | E132: 70.45851872 | F132: 126.8281549 | G132: 215.6078634 | H132: 0.5754017704 | I132: 25.11936273 | J132: 19.19733032 | K132: 32.15774711 | L132: 3.094832767 | M132: 27.33225973 | N132: 0.1 | O132: -1 | P132: 1
A133: 1997 - Feb | B133: 8.666666667 | C133: 1111 | D133: 0.9245060605 | E133: 70.23374387 | F133: 127.1312086 | G133: 216.1230547 | H133: 0.5547036363 | I133: 24.93727554 | J133: 19.21643022 | K133: 32.22176803 | L133: 2.515265929 | M133: 22.24539668 | N133: 0.1 | O133: -1 | P133: 1
A134: 1997 - Mar | B134: 8.75 | C134: 1111 | D134: 0.8941227303 | E134: 70.02940012 | F134: 127.4421311 | G134: 216.6516229 | H134: 0.5364736382 | I134: 24.76018547 | J134: 19.23599847 | K134: 32.28742481 | L134: 2.570818227 | M134: 22.1158441 | N134: 0.1 | O134: -1 | P134: 1
A135: 1997 - Apr | B135: 8.833333333 | C135: 1111 | D135: 0.8568695526 | E135: 69.6526044 | F135: 127.6922883 | G135: 217.0768902 | H135: 0.5141217316 | I135: 24.57474228 | J135: 19.25172218 | K135: 32.34023056 | L135: 2.047978214 | M135: 18.32395261 | N135: 0.1 | O135: -1 | P135: 1
A136: 1997 - May | B136: 8.916666667 | C136: 1111 | D136: 0.8177838639 | E136: 69.18076396 | F136: 127.9103179 | G136: 217.4475404 | H136: 0.4906703184 | I136: 24.38664005 | J136: 19.26541184 | K136: 32.38624041 | L136: 1.754737052 | M136: 15.51287809 | N136: 0.1 | O136: -1 | P136: 1
A137: 1997 - Jun | B137: 9 | C137: 1111 | D137: 0.7789187511 | E137: 68.66470703 | F137: 128.108425 | G137: 217.7843224 | H137: 0.4673512507 | I137: 24.19825805 | J137: 19.27783882 | K137: 32.42803477 | L137: 1.596612959 | M137: 14.04186918 | N137: 0.1 | O137: -1 | P137: 1
A138: 1997 - Jul | B138: 9.083333333 | C138: 1111 | D138: 0.7450156068 | E138: 68.18497093 | F138: 128.3173635 | G138: 218.139518 | H138: 0.4470093641 | I138: 24.01535978 | J138: 19.2909331 | K138: 32.47210256 | L138: 1.683995816 | M138: 14.20909549 | N138: 0.1 | O138: -1 | P138: 1
A139: 1997 - Aug | B139: 9.166666667 | C139: 1111 | D139: 0.7176987649 | E139: 67.78965581 | F139: 128.5503922 | G139: 218.5356668 | H139: 0.430619259 | I139: 23.84025456 | J139: 19.30552245 | K139: 32.52123717 | L139: 1.907441775 | M139: 15.77839448 | N139: 0.1 | O139: -1 | P139: 1
A140: 1997 - Sep | B140: 9.25 | C140: 1111 | D140: 0.6944182039 | E140: 67.44920532 | F140: 128.7946671 | G140: 218.9509341 | H140: 0.4166509223 | I140: 23.67037126 | J140: 19.32079935 | K140: 32.57272713 | L140: 2.039134231 | M140: 17.123705 | N140: 0.1 | O140: -1 | P140: 1
A141: 1997 - Oct | B141: 9.333333333 | C141: 1111 | D141: 0.6754618988 | E141: 67.15975676 | F141: 129.0542985 | G141: 219.3923075 | H141: 0.4052771393 | I141: 23.50631866 | J141: 19.33701813 | K141: 32.62743619 | L141: 2.174447137 | M141: 18.45135659 | N141: 0.1 | O141: -1 | P141: 1
A142: 1997 - Nov | B142: 9.416666667 | C142: 1111 | D142: 0.6579488731 | E142: 66.87195371 | F142: 129.3130201 | G142: 219.8321342 | H142: 0.3947693238 | I142: 23.3450054 | J142: 19.35316114 | K142: 32.6819353 | L142: 2.166417258 | M142: 18.27215805 | N142: 0.1 | O142: -1 | P142: 1
A143: 1997 - Dec | B143: 9.5 | C143: 1111 | D143: 0.641702685 | E143: 66.58706267 | F143: 129.5704807 | G143: 220.2698172 | H143: 0.385021611 | I143: 23.18629654 | J143: 19.36920679 | K143: 32.73615074 | L143: 2.160272977 | M143: 18.85016915 | N143: 0.1 | O143: -1 | P143: 1
A144: 1998 - Jan | B144: 9.583333333 | C144: 1111 | D144: 0.6261317116 | E144: 66.29096555 | F144: 129.823535 | G144: 220.7000094 | H144: 0.375679027 | I144: 23.0295662 | J144: 19.3849597 | K144: 32.78942082 | L144: 2.116461424 | M144: 17.99778409 | N144: 0.1 | O144: -1 | P144: 1
A145: 1998 - Feb | B145: 9.666666667 | C145: 1111 | D145: 0.604869696 | E145: 65.86627134 | F145: 130.0311831 | G145: 221.0530112 | H145: 0.3629218176 | I145: 22.86755288 | J145: 19.39787266 | K145: 32.83311958 | L145: 1.721867123 | M145: 14.68475889 | N145: 0.1 | O145: -1 | P145: 1
A146: 1998 - Mar | B146: 9.75 | C146: 1111 | D146: 0.5862329478 | E146: 65.45976236 | F146: 130.2442628 | G146: 221.4152468 | H146: 0.3517397687 | I146: 22.70925608 | J146: 19.4111109 | K146: 32.87794933 | L146: 1.760302142 | M146: 14.6249666 | N146: 0.1 | O146: -1 | P146: 1
A147: 1998 - Apr | B147: 9.833333333 | C147: 1111 | D147: 0.5627707741 | E147: 64.93937825 | F147: 130.4157714 | G147: 221.7068113 | H147: 0.3376624645 | I147: 22.54645539 | J147: 19.42175722 | K147: 32.91402405 | L147: 1.402954253 | M147: 12.14246301 | N147: 0.1 | O147: -1 | P147: 1
A148: 1998 - May | B148: 9.916666667 | C148: 1111 | D148: 0.5378999219 | E148: 64.35772519 | F148: 130.5652128 | G148: 221.9608617 | H148: 0.3227399532 | I148: 22.38260791 | J148: 19.43102708 | K148: 32.94545078 | L148: 1.20179513 | M148: 10.29844273 | N148: 0.1 | O148: -1 | P148: 1
A149: 1998 - Jun | B149: 10 | C149: 1111 | D149: 0.5130250193 | E149: 63.7494786 | F149: 130.7009243 | G149: 222.1915713 | H149: 0.3078150116 | I149: 22.21915713 | J149: 19.43943991 | K149: 32.97398499 | L149: 1.092930628 | M149: 9.330126436 | N149: 0.1 | O149: -1 | P149: 1

Sheet 
A2: Run type : | B2: SingleSite | E2: Stand initialisation and site factor data | K2: Optional parameter block | N2: Definition of parameter
A3: Site : | B3: Metolius River Oregon | F3: Year planted = | G3: 1999 | I3: Latitude = | J3: 44 | L3: Parameters | S3: gC/MJ APAR
A4: Species : | B4: Doug fir | F4: Month planted = | G4: Jan | I4: Fertility rating = | J4: 0.25
A5: Climate data : | B5: Metolius, OR Metdata | F5: Initial year = | G5: 1 | I5: Soil class = | J5: sl
A6: Met station : | B6: Mean Data | F6: Initial month = | G6: Jan | I6: Maximum ASW = | J6: 100
A7: Title : | B7: Ponderosa pine average climate | F7: End age = | G7: 100 | I7: Minimum ASW = | J7: 0
F8: Initial WF = | G8: 3 | I8: Atmospheric CO2 = | J8: 360
F9: Initial WR = | G9: 3
F10: Initial WS = | G10: 3
F11: Initial stocking = | G11: 300
F12: Initial ASW = | G12: 100
F16: Output details | H16: BasArea, avdbh
G17: Output frequency : | H17: a
A36: #Output from 3PGpjs 2.7 / 3-PG vsn 1 Sep2009
A37: Stand development for Metolius River Oregon
A38: Ponderosa pine average climate | Q38: Tree vigor
A39: Year & month | B39: Stand age | C39: Stems | D39: Foliage DM | E39: Root DM | F39: Stem DM | G39: Stand volume | H39: LAI | I39: MAI | J39: Mean DBH | K39: Basal area | L39: GPP | M39: Penman transp. | Q39: g wood/m2 Leaf area/yr | S39: % mortality/yr
A40: 2000 - Jan | B40: 1 | C40: 300 | D40: 3 | E40: 3 | F40: 3 | G40: 6.365027996 | H40: 1.65 | I40: 6.365027996 | J40: 7.103975709 | K40: 1.189088206
A41: 2001 - Jan | B41: 2 | C41: 300 | D41: 3.024637613 | E41: 0.3061026946 | F41: 3.179192658 | G41: 6.735295881 | H41: 1.679149727 | I41: 3.36764794 | J41: 7.275199558 | K41: 1.247099075 | L41: 1.747213323 | M41: 265.865355 | Q41: =1000*(F41-F40)/F41 -> 56.36420216 | S41: =100*(C40-C41)/C40 -> 0
A42: 2002 - Jan | B42: 3 | C42: 300 | D42: 3.026093133 | E42: 0.1931456602 | F42: 3.499201555 | G42: 7.403005648 | H42: 1.70271883 | I42: 2.467668549 | J42: 7.567356263 | K42: 1.349271967 | L42: 3.098024643 | M42: 265.8782555 | Q42: =1000*(F42-F41)/F42 -> 91.45197633 | S42: =100*(C41-C42)/C41 -> 0
A43: 2003 - Jan | B43: 4 | C43: 300 | D43: 2.966500786 | E43: 0.2536260019 | F43: 3.954744046 | G43: 8.355901495 | H43: 1.698078951 | I43: 2.088975374 | J43: 7.957257167 | K43: 1.491893852 | L43: 4.380192062 | M43: 265.8594746 | Q43: 115.1888681 | S43: 0
A44: 2004 - Jan | B44: 5 | C44: 300 | D44: 2.880719494 | E44: 0.3186117945 | F44: 4.533184587 | G44: 9.56640514 | H44: 1.665891675 | I44: 1.913281028 | J44: 8.415916741 | K44: 1.668837295 | L44: 5.523150309 | M44: 265.797373 | Q44: 127.601365 | S44: 0
A45: 2005 - Jan | B45: 6 | C45: 300 | D45: 2.819143462 | E45: 0.3748327938 | F45: 5.217802795 | G45: 10.99857191 | H45: 1.633136814 | I45: 1.833095318 | J45: 8.916165048 | K45: 1.873127476 | L45: 6.491187503 | M45: 265.7306929 | Q45: 131.2081416 | S45: 0
A46: 2006 - Jan | B46: 7 | C46: 300 | D46: 2.802586216 | E46: 0.422754675 | F46: 5.994151789 | G46: 12.62149465 | H46: 1.619663473 | I46: 1.803070664 | J46: 9.438613645 | K46: 2.099073059 | L46: 7.309917613 | M46: 265.6922365 | Q46: 129.5177403 | S46: 0
A47: 2007 - Jan | B47: 8 | C47: 300 | D47: 2.830564769 | E47: 0.4652172484 | F47: 6.853323036 | G47: 14.41611393 | H47: 1.630454935 | I47: 1.802014242 | J47: 9.972175732 | K47: 2.343100854 | L47: 8.034766247 | M47: 265.689793 | Q47: 125.3656427 | S47: 0
A48: 2008 - Jan | B48: 9 | C48: 300 | D48: 2.896069008 | E48: 0.5048348591 | F48: 7.791327904 | G48: 16.37383675 | H48: 1.663342113 | I48: 1.819315194 | J48: 10.5113969 | K48: 2.60334668 | L48: 8.713790637 | M48: 265.7214719 | Q48: 120.3908858 | S48: 0
A49: 2009 - Jan | B49: 10 | C49: 300 | D49: 2.991894666 | E49: 0.5433366953 | F49: 8.807368992 | G49: 18.49284441 | H49: 1.71456211 | I49: 1.849284441 | J49: 11.05387784 | K49: 2.878991999 | L49: 9.377703556 | M49: 265.7853833 | Q49: 115.3626115 | S49: 0
A50: 2010 - Jan | B50: 11 | C50: 300 | D50: 3.11219265 | E50: 0.5817020775 | F50: 9.902441759 | G50: 20.77512215 | H50: 1.780685885 | I50: 1.888647468 | J50: 11.59868701 | K50: 3.169777621 | L50: 10.04351543 | M50: 265.8814118 | Q50: 110.5861356 | S50: 0
A51: 2011 - Jan | B51: 12 | C51: 300 | D51: 3.252475333 | E51: 0.6204281815 | F51: 11.07845567 | G51: 23.22459768 | H51: 1.858982387 | I51: 1.93538314 | J51: 12.14553359 | K51: 3.475716417 | L51: 10.7197464 | M51: 266.010651 | Q51: 106.1532353 | S51: 0
A52: 2012 - Jan | B52: 13 | C52: 300 | D52: 3.409290821 | E52: 0.6597700298 | F52: 12.33771213 | G52: 25.84603854 | H52: 1.947328908 | I52: 1.988156811 | J52: 12.69436277 | K52: 3.79693311 | L52: 11.41002004 | M52: 266.187693 | Q52: 102.0656383 | S52: 0
A53: 2013 - Jan | B53: 14 | C53: 300 | D53: 3.57993902 | E53: 0.6997423141 | F53: 13.68264287 | G53: 28.64450053 | H53: 2.044069629 | I53: 2.046035752 | J53: 13.24518513 | K53: 4.133588134 | L53: 12.1153518 | M53: 266.3979395 | Q53: 98.29466036 | S53: 0
A54: 2014 - Jan | B54: 15 | C54: 300 | D54: 3.762239609 | E54: 0.7403031595 | F54: 15.11563609 | G54: 31.6249626 | H54: 2.147874454 | I54: 2.10833084 | J54: 13.79799297 | K54: 4.485831695 | L54: 12.83524876 | M54: 266.6401113 | Q54: 94.80204549 | S54: 0
A55: 2015 - Jan | B55: 16 | C55: 300 | D55: 3.94589871 | E55: 0.7731207763 | F55: 16.62623555 | G55: 34.76555966 | H55: 2.254340884 | I55: 2.172847479 | J55: 14.34823065 | K55: 4.850738192 | L55: 13.45136555 | M55: 266.909203 | Q55: 90.856373 | S55: 0
A56: 2016 - Jan | B56: 17 | C56: 300 | D56: 4.107325667 | E56: 0.789892105 | F56: 18.17913709 | G56: 37.99256714 | H56: 2.350978406 | I56: 2.234856891 | J56: 14.88395234 | K56: 5.219725655 | L56: 13.75350567 | M56: 267.1829618 | Q56: 85.42218136 | S56: 0
A57: 2017 - Jan | B57: 18 | C57: 300 | D57: 4.247574195 | E57: 0.8029585423 | F57: 19.76822723 | G57: 41.2933965 | H57: 2.435197856 | I57: 2.294077583 | J57: 15.40490904 | K57: 5.591513953 | L57: 14.00406276 | M57: 267.4335514 | Q57: 80.38607222 | S57: 0
A58: 2018 - Jan | B58: 19 | C58: 300 | D58: 4.368084035 | E58: 0.8136240827 | F58: 21.38820626 | G58: 44.65717845 | H58: 2.507777245 | I58: 2.350377813 | J58: 15.91116023 | K58: 5.965060247 | L58: 14.21086739 | M58: 267.6657724 | Q58: 75.74169646 | S58: 0
A59: 2019 - Jan | B59: 20 | C59: 300 | D59: 4.470516041 | E59: 0.8223429932 | F59: 23.0345136 | G59: 48.07459881 | H59: 2.569648043 | I59: 2.40372994 | J59: 16.40297809 | K59: 6.339522475 | L59: 14.380779 | M59: 267.8779267 | Q59: 71.47133082 | S59: 0
A60: 2020 - Jan | B60: 21 | C60: 300 | D60: 4.556625976 | E60: 0.8294297266 | F60: 24.70324491 | G60: 51.53771875 | H60: 2.621816146 | I60: 2.454177083 | J60: 16.88077617 | K60: 6.71422605 | L60: 14.51970343 | M60: 268.0631913 | Q60: 67.55109754 | S60: 0
A61: 2021 - Jan | B61: 22 | C61: 300 | D61: 4.628168058 | E61: 0.8351593726 | F61: 26.39106036 | G61: 55.03977834 | H61: 2.665298555 | I61: 2.501808106 | J61: 17.34505448 | K61: 7.088632686 | L61: 14.63262417 | M61: 268.2220836 | Q61: 63.95405979 | S61: 0
A62: 2022 - Jan | B62: 23 | C62: 300 | D62: 4.686831906 | E62: 0.8397607144 | F62: 28.09510515 | G62: 58.57502675 | H62: 2.701083583 | I62: 2.546740293 | J62: 17.79636177 | K62: 7.462315168 | L62: 14.72373168 | M62: 268.3559429 | Q62: 60.65272854 | S62: 0
A63: 2023 - Jan | B63: 24 | C63: 300 | D63: 4.734202763 | E63: 0.8434228091 | F63: 29.81293885 | G63: 62.1385721 | H63: 2.730104538 | I63: 2.589107171 | J63: 18.23526891 | K63: 7.834936488 | L63: 14.79653606 | M63: 268.4666126 | Q63: 57.6204082 | S63: 0
A64: 2024 - Jan | B64: 25 | C64: 300 | D64: 4.771739114 | E64: 0.84630175 | F64: 31.54247409 | G64: 65.72625136 | H64: 2.753224332 | I64: 2.629050054 | J64: 18.66235074 | K64: 8.206232758 | L64: 14.8539727 | M64: 268.5562015 | Q64: 54.83194604 | S64: 0
A65: 2025 - Jan | B65: 26 | C65: 300 | D65: 4.800762789 | E65: 0.8485265389 | F65: 33.28192383 | G65: 69.33451911 | H65: 2.771228013 | I65: 2.666712273 | J65: 19.0781738 | K65: 8.575999315 | L65: 14.89849619 | M65: 268.6269118 | Q65: 52.26409832 | S65: 0
A66: 2026 - Jan | B66: 27 | C66: 300 | D66: 4.822457697 | E66: 0.850204005 | F66: 35.02975657 | G66: 72.96035308 | H66: 2.784820837 | I66: 2.702235299 | J66: 19.48328827 | K66: 8.944079455 | L66: 14.93216086 | M66: 268.6809209 | Q66: 49.89565764 | S66: 0
A67: 2027 - Jan | B67: 28 | C67: 300 | D67: 4.837874246 | E67: 0.8514228537 | F67: 36.78465834 | G67: 76.60117436 | H67: 2.794630056 | I67: 2.735756227 | J67: 19.87822306 | K67: 9.310355311 | L67: 14.95668869 | M67: 268.7203044 | Q67: 47.70743707 | S67: 0
A68: 2028 - Jan | B68: 29 | C68: 300 | D68: 4.847937267 | E68: 0.8522569642 | F68: 38.54550057 | G68: 80.25478008 | H68: 2.801209024 | I68: 2.76740621 | J68: 20.26348287 | K68: 9.674740463 | L68: 14.97352573 | M68: 268.7469905 | Q68: 45.68217291 | S68: 0
A69: 2029 - Jan | B69: 30 | C69: 300 | D69: 4.853455892 | E69: 0.8527680619 | F69: 40.31131286 | G69: 83.91928664 | H69: 2.805042662 | I69: 2.797309555 | J69: 20.63954682 | K69: 10.03717395 | L69: 14.98388875 | M69: 268.7627353 | Q69: 43.80438558 | S69: 0
A70: 2030 - Jan | B70: 31 | C70: 300 | D70: 4.855134298 | E70: 0.853007877 | F70: 42.08126004 | G70: 87.5930819 | H70: 2.806553568 | I70: 2.825583287 | J70: 21.00686799 | K70: 10.39761539 | L70: 14.98880361 | M70: 268.7691146 | Q70: 42.06022313 | S70: 0
A71: 2031 - Jan | B71: 32 | C71: 300 | D71: 4.853582576 | E71: 0.8530198907 | F71: 43.85462267 | G71: 91.27478472 | H71: 2.806108303 | I71: 2.852337023 | J71: 21.36587373 | K71: 10.75604105 | L71: 14.98913681 | M71: 268.7675255 | Q71: 40.43730202 | S71: 0
A72: 2032 - Jan | B72: 33 | C72: 300 | D72: 4.849327269 | E72: 0.8528407483 | F72: 45.63078043 | G72: 94.96321078 | H72: 2.804023547 | I72: 2.877673054 | J72: 21.7169663 | K72: 11.11244056 | L72: 14.98562149 | M72: 268.7591946 | Q72: 38.92455377 | S72: 0
A73: 2033 - Jan | B73: 34 | C73: 300 | D73: 4.842821276 | E73: 0.8525014072 | F73: 47.40919815 | G73: 98.65734357 | H73: 2.800571929 | I73: 2.901686576 | J73: 22.0605239 | K73: 11.46681432 | L73: 14.97887885 | M73: 268.7451895 | Q73: 37.51208184 | S73: 0
A74: 2034 - Jan | B74: 35 | C74: 300 | D74: 4.834452968 | E74: 0.8520280727 | F74: 49.18941375 | G74: 102.3563098 | H74: 2.795987419 | I74: 2.924465995 | J74: 22.3969018 | K74: 11.81917132 | L74: 14.96943584 | M74: 268.7264334 | Q74: 36.1910309 | S74: 0
A75: 2035 - Jan | B75: 36 | C75: 300 | D75: 4.824554465 | E75: 0.8514429652 | F75: 50.97102799 | G75: 106.0593586 | H75: 2.790470244 | I75: 2.946093295 | J75: 22.72643356 | K75: 12.16952735 | L75: 14.95773985 | M75: 268.7037193 | Q75: 34.95346903 | S75: 0
A76: 2036 - Jan | B76: 37 | C76: 300 | D76: 4.813409031 | E76: 0.8507649502 | F76: 52.75369579 | G76: 109.7658434 | H76: 2.784191296 | I76: 2.966644416 | J76: 23.04943228 | K76: 12.51790357 | L76: 14.944171 | M76: 268.6777245 | Q76: 33.79228251 | S76: 0
A77: 2037 - Jan | B77: 38 | C77: 300 | D77: 4.80125766 | E77: 0.8500100602 | F77: 54.5371186 | G77: 113.4752069 | H77: 2.77729606 | I77: 2.986189657 | J77: 23.36619187 | K77: 12.86432529 | L77: 14.92905228 | M77: 268.6490242 | Q77: 32.70108248 | S77: 0
A78: 2038 - Jan | B78: 39 | C78: 300 | D78: 4.788304858 | E78: 0.849191928 | F78: 56.32103806 | G78: 117.1869683 | H78: 2.769908078 | I78: 3.004794058 | J78: 23.67698827 | K78: 13.20882098 | L78: 14.91265817 | M78: 268.6181047 | Q78: 31.67412247 | S78: 0
A79: 2039 - Jan | B79: 40 | C79: 300 | D79: 4.774723726 | E79: 0.8483221478 | F79: 58.10523037 | G79: 120.9007115 | H79: 2.76213199 | I79: 3.022517786 | J79: 23.9820806 | K79: 13.55142147 | L79: 14.8952218 | M79: 268.5853745 | Q79: 30.70622569 | S79: 0
A80: 2040 - Jan | B80: 41 | C80: 300 | D80: 4.760660378 | E80: 0.8474105784 | F80: 59.88950159 | G80: 124.6160762 | H80: 2.754056187 | I80: 3.039416492 | J80: 24.28171231 | K80: 13.8921593 | L80: 14.87694107 | M80: 268.5511752 | Q80: 29.79272105 | S80: 0
A81: 2041 - Jan | B81: 42 | C81: 300 | D81: 4.746237788 | E81: 0.846465598 | F81: 61.67368344 | G81: 128.3327495 | H81: 2.745755119 | I81: 3.055541655 | J81: 24.5761122 | K81: 14.23106815 | L81: 14.85798378 | M81: 268.5157902 | Q81: 28.92938688 | S81: 0
A82: 2042 - Jan | B82: 43 | C82: 300 | D82: 4.731559115 | E82: 0.8454943196 | F82: 63.4576298 | G82: 132.0504589 | H82: 2.737291297 | I82: 3.070940906 | J82: 24.86549545 | K82: 14.5681824 | L82: 14.83849196 | M82: 268.4794535 | Q82: 28.11240145 | S82: 0
A83: 2043 - Jan | B83: 44 | C83: 300 | D83: 4.716710579 | E83: 0.8445027732 | F83: 65.24121364 | G83: 135.7689662 | H83: 2.728717015 | I83: 3.085658323 | J83: 25.15006451 | K83: 14.90353675 | L83: 14.81858561 | M83: 268.4423564 | Q83: 27.33829946 | S83: 0
A84: 2044 - Jan | B84: 45 | C84: 300 | D84: 4.701763934 | E84: 0.8434960611 | F84: 67.02432432 | G84: 139.4880623 | H84: 2.720075846 | I84: 3.099734718 | J84: 25.43001001 | K84: 15.23716598 | L84: 14.79836586 | M84: 268.4046537 | Q84: 26.60393369 | S84: 0
A85: 2045 - Jan | B85: 46 | C85: 300 | D85: 4.686778603 | E85: 0.8424784897 | F85: 68.80686533 | G85: 143.2075629 | H85: 2.711403923 | I85: 3.113207889 | J85: 25.70551152 | K85: 15.56910463 | L85: 14.77791765 | M85: 268.3664694 | Q85: 25.90644124 | S85: 0
A86: 2046 - Jan | B86: 47 | C86: 300 | D86: 4.671803502 | E86: 0.8414536823 | F86: 70.58875229 | G86: 146.9273046 | H86: 2.702731037 | I86: 3.126112864 | J86: 25.97673836 | K86: 15.89938685 | L86: 14.75731205 | M86: 268.3279012 | Q86: 25.24321376 | S86: 0
A87: 2047 - Jan | B87: 48 | C87: 300 | D87: 4.656878615 | E87: 0.8404246757 | F87: 72.36991122 | G87: 150.6471416 | H87: 2.694081587 | I87: 3.138482116 | J87: 26.24385023 | K87: 16.22804627 | L87: 14.73660821 | M87: 268.2890243 | Q87: 24.61187111 | S87: 0
A88: 2048 - Jan | B88: 49 | C88: 300 | D88: 4.642036335 | E88: 0.8393940027 | F88: 74.15027703 | G88: 154.3669428 | H88: 2.685475387 | I88: 3.150345771 | J88: 26.50699791 | K88: 16.55511583 | L88: 14.71585511 | M88: 268.249895 | Q88: 24.01023811 | S88: 0
A89: 2049 - Jan | B89: 50 | C89: 300 | D89: 4.627302617 | E89: 0.8383637634 | F89: 75.92979224 | G89: 158.0865895 | H89: 2.676928363 | I89: 3.16173179 | J89: 26.76632383 | K89: 16.88062771 | L89: 14.69509294 | M89: 268.2105538 | Q89: 23.43632393 | S89: 0
A90: 2050 - Jan | B90: 51 | C90: 300 | D90: 4.612697961 | E90: 0.8373356857 | F90: 77.70840584 | G90: 161.8059734 | H90: 2.668453145 | I90: 3.172666144 | J90: 27.02196264 | K90: 17.20461325 | L90: 14.67435438 | M90: 268.1710274 | Q90: 22.88830381 | S90: 0
A91: 2051 - Jan | B91: 52 | C91: 300 | D91: 4.598238259 | E91: 0.836311178 | F91: 79.48607232 | G91: 165.5249943 | H91: 2.660059573 | I91: 3.183172968 | J91: 27.27404172 | K91: 17.52710293 | L91: 14.65366569 | M91: 268.1313315 | Q91: 22.36450278 | S91: 0
A92: 2052 - Jan | B92: 53 | C92: 300 | D92: 4.583935504 | E92: 0.8352913747 | F92: 81.26275083 | G92: 169.2435594 | H92: 2.651755133 | I92: 3.193274706 | J92: 27.52268165 | K92: 17.84812627 | L92: 14.6330476 | M92: 268.0914722 | Q92: 21.86338127 | S92: 0
A93: 2053 - Jan | B93: 54 | C93: 300 | D93: 4.569798413 | E93: 0.8342771741 | F93: 83.03840439 | G93: 172.9615811 | H93: 2.643545324 | I93: 3.202992242 | J93: 27.76799668 | K93: 18.16771187 | L93: 14.61251611 | M93: 268.0514474 | Q93: 21.38352219 | S93: 0
A94: 2054 - Jan | B94: 55 | C94: 300 | D94: 4.555832946 | E94: 0.833269273 | F94: 84.81299931 | G94: 176.6789764 | H94: 2.635433979 | I94: 3.212345025 | J94: 28.01009507 | K94: 18.48588734 | L94: 14.5920832 | M94: 268.0112487 | Q94: 20.92361946 | S94: 0
A95: 2055 - Jan | B95: 56 | C95: 300 | D95: 4.54204275 | E95: 0.8322681948 | F95: 86.5865046 | G95: 180.3956658 | H95: 2.627423526 | I95: 3.221351175 | J95: 28.24907956 | K95: 18.80267934 | L95: 14.57175735 | M95: 267.9708619 | Q95: 20.48246772 | S95: 0
A96: 2056 - Jan | B96: 57 | C96: 300 | D96: 4.528429541 | E96: 0.8312743148 | F96: 88.35889146 | G96: 184.1115725 | H96: 2.619515224 | I96: 3.230027588 | J96: 28.48504765 | K96: 19.11811355 | L96: 14.55154413 | M96: 267.9302686 | Q96: 20.05895316 | S96: 0
A97: 2057 - Jan | B97: 58 | C97: 300 | D97: 4.514993426 | E97: 0.8302878814 | F97: 90.13013292 | G97: 187.8266216 | H97: 2.611709356 | I97: 3.238390028 | J97: 28.71809197 | K97: 19.4322147 | L97: 14.53144657 | M97: 267.8894464 | Q97: 19.6520453 | S97: 0
A98: 2058 - Jan | B98: 59 | C98: 300 | D98: 4.50173318 | E98: 0.8293090347 | F98: 91.90020339 | G98: 191.5407396 | H98: 2.60400539 | I98: 3.246453213 | J98: 28.94830054 | K98: 19.74500654 | L98: 14.51146555 | M98: 267.8483698 | Q98: 19.26078953 | S98: 0
A99: 2059 - Jan | B99: 60 | C99: 300 | D99: 4.488646473 | E99: 0.8283378225 | F99: 93.66907842 | G99: 195.2538536 | H99: 2.596402129 | I99: 3.254230894 | J99: 29.17575711 | K99: 20.0565119 | L99: 14.49160014 | M99: 267.8070111 | Q99: 18.88430053 | S99: 0
A100: 2060 - Jan | B100: 61 | C100: 300 | D100: 4.475730077 | E100: 0.8273742139 | F100: 95.43673435 | G100: 198.9658914 | H100: 2.588897822 | I100: 3.261735924 | J100: 29.40054134 | K100: 20.3667527 | L100: 14.47184785 | M100: 267.7653402 | Q100: 18.52175625 | S100: 0
A101: 2061 - Jan | B101: 62 | C101: 300 | D101: 4.462980023 | E101: 0.8264181111 | F101: 97.20314811 | G101: 202.6767805 | H101: 2.581490269 | I101: 3.268980331 | J101: 29.62272912 | K101: 20.67574992 | L101: 14.45220489 | M101: 267.7233259 | Q101: 18.17239251 | S101: 0
A102: 2062 - Jan | B102: 63 | C102: 300 | D102: 4.450391753 | E102: 0.8254693597 | F102: 98.96829699 | G102: 206.3864483 | H102: 2.574176907 | I102: 3.27597537 | J102: 29.84239275 | K102: 20.98352369 | L102: 14.43266636 | M102: 267.6809356 | Q102: 17.83549818 | S102: 0
A103: 2063 - Jan | B103: 64 | C103: 300 | D103: 4.437960232 | E103: 0.8245277573 | F103: 100.7321585 | G103: 210.0948216 | H103: 2.566954883 | I103: 3.282731587 | J103: 30.05960116 | K103: 21.29009326 | L103: 14.41322642 | M103: 267.6381357 | Q103: 17.51041073 | S103: 0
A104: 2064 - Jan | B104: 65 | C104: 300 | D104: 4.425680053 | E104: 0.8235930613 | F104: 102.49471 | G104: 213.8018262 | H104: 2.559821111 | I104: 3.289258865 | J104: 30.2744201 | K104: 21.59547705 | L104: 14.39387847 | M104: 267.5948921 | Q104: 17.19651225 | S104: 0
A105: 2065 - Jan | B105: 66 | C105: 300 | D105: 4.413545521 | E105: 0.8226649948 | F105: 104.255929 | G105: 217.507387 | H105: 2.552772329 | I105: 3.29556647 | J105: 30.48691233 | K105: 21.89969265 | L105: 14.37461523 | M105: 267.5511704 | Q105: 16.89322588 | S105: 0
A106: 2066 - Jan | B106: 67 | C106: 300 | D106: 4.401550411 | E106: 0.8217456917 | F106: 106.0157917 | G106: 221.2114264 | H106: 2.545804847 | I106: 3.301663081 | J106: 30.6971377 | K106: 22.20275675 | L106: 14.35542588 | M106: 267.5076395 | Q106: =1000*(F106-F105)/F106 -> 16.60000604 | S106: =100*(C105-C106)/C105 -> 0
A107: 2067 - Jan | B107: 68 | C107: 300 | D107: 4.38968795 | E107: 0.8208382496 | F107: 107.7742734 | G107: 224.9138632 | H107: 2.538914607 | I107: 3.307556811 | J107: 30.90515329 | K107: 22.50468509 | L107: 14.33629762 | M107: 267.4652123 | Q107: 16.31633958 | S107: 0
A108: 2068 - Jan | B108: 69 | C108: 300 | D108: 4.377952093 | E108: 0.8199366403 | F108: 109.53135 | G108: 228.6146179 | H108: 2.532098374 | I108: 3.313255332 | J108: 31.11101381 | K108: 22.80549291 | L108: 14.31722808 | M108: 267.4221607 | Q108: 16.04176901 | S108: 0
A109: 2069 - Jan | B109: 70 | C109: 300 | D109: 4.366336713 | E109: 0.8190401166 | F109: 111.2869972 | G109: 232.3136098 | H109: 2.525352607 | I109: 3.318765855 | J109: 31.31477162 | K109: 23.10519475 | L109: 14.29820849 | M109: 267.3784505 | Q109: 15.77585194 | S109: 0
A110: 2070 - Jan | B110: 71 | C110: 300 | D110: 4.35483564 | E110: 0.8181482803 | F110: 113.04119 | G110: 236.0107566 | H110: 2.518673733 | I110: 3.324095163 | J110: 31.5164768 | K110: 23.40380444 | L110: 14.27922985 | M110: 267.3340471 | Q110: 15.51817329 | S110: 0
A111: 2071 - Jan | B111: 72 | C111: 300 | D111: 4.343442687 | E111: 0.8172607457 | F111: 114.7939027 | G111: 239.705974 | H111: 2.512058165 | I111: 3.32924964 | J111: 31.71617732 | K111: 23.70133511 | L111: 14.26028293 | M111: 267.2889166 | Q111: 15.26834328 | S111: 0
A112: 2072 - Jan | B112: 73 | C112: 300 | D112: 4.332151679 | E112: 0.8163771183 | F112: 116.545109 | G112: 243.3991766 | H112: 2.505502322 | I112: 3.334235296 | J112: 31.91391911 | K112: 23.99779925 | L112: 14.24135834 | M112: 267.2430248 | Q112: 15.02599557 | S112: 0
A113: 2073 - Jan | B113: 74 | C113: 300 | D113: 4.320956468 | E113: 0.8154969954 | F113: 118.2947817 | G113: 247.0902768 | H113: 2.499002635 | I113: 3.339057795 | J113: 32.10974618 | K113: 24.29320871 | L113: 14.22244657 | M113: 267.1963381 | Q113: 14.79078555 | S113: 0
A114: 2074 - Jan | B114: 75 | C114: 300 | D114: 4.309850957 | E114: 0.8146199669 | F114: 120.042893 | G114: 250.7791855 | H114: 2.49255556 | I114: 3.343722473 | J114: 32.30370071 | K114: 24.58757468 | L114: 14.203538 | M114: 267.1488233 | Q114: 14.56238875 | S114: 0
A115: 2075 - Jan | B115: 76 | C115: 300 | D115: 4.298829105 | E115: 0.8137456173 | F115: 121.789414 | G115: 254.4658117 | H115: 2.486157585 | I115: 3.348234364 | J115: 32.49582317 | K115: 24.88090779 | L115: 14.18462296 | M115: 267.1004475 | Q115: 14.34049946 | S115: 0
A116: 2076 - Jan | B116: 77 | C116: 300 | D116: 4.287884943 | E116: 0.8128735262 | F116: 123.5343151 | G116: 258.1500625 | H116: 2.47980524 | I116: 3.352598215 | J116: 32.68615237 | K116: 25.17321806 | L116: 14.16569173 | M116: 267.0511783 | Q116: 14.12482936 | S116: 0
A117: 2077 - Jan | B117: 78 | C117: 300 | D117: 4.27701258 | E117: 0.8120032693 | F117: 125.2775658 | G117: 261.8318435 | H117: 2.473495096 | I117: 3.356818506 | J117: 32.87472555 | K117: 25.46451494 | L117: 14.14673455 | M117: 267.0009839 | Q117: 13.91510636 | S117: 0
A118: 2078 - Jan | B118: 79 | C118: 300 | D118: 4.26620621 | E118: 0.8111344195 | F118: 127.0191345 | G118: 265.5110581 | H118: 2.467223776 | I118: 3.360899469 | J118: 33.06157849 | K118: 25.75480733 | L118: 14.12774167 | M118: 266.9498329 | Q118: 13.71107347 | S118: 0
A119: 2079 - Jan | B119: 80 | C119: 300 | D119: 4.255460115 | E119: 0.8102665468 | F119: 128.7589887 | G119: 269.1876079 | H119: 2.460987949 | I119: 3.364845099 | J119: 33.24674551 | K119: 26.0441036 | L119: 14.10870332 | M119: 266.8976947 | Q119: 13.51248777 | S119: 0
A120: 2080 - Jan | B120: 81 | C120: 300 | D120: 4.244768672 | E120: 0.8093992192 | F120: 130.4970951 | G120: 272.8613929 | H120: 2.454784343 | I120: 3.368659171 | J120: 33.43025961 | K120: 26.33241158 | L120: 14.08960977 | M120: 266.8445393 | Q120: 13.3191195 | S120: 0
A121: 2081 - Jan | B121: 82 | C121: 300 | D121: 4.234126351 | E121: 0.8085320032 | F121: 132.2334193 | G121: 276.5323109 | H121: 2.448609736 | I121: 3.372345255 | J121: 33.61215249 | K121: 26.61973861 | L121: 14.07045129 | M121: 266.7903373 | Q121: 13.13075115 | S121: 0
A122: 2082 - Jan | B122: 83 | C122: 300 | D122: 4.22352772 | E122: 0.8076644636 | F122: 133.9679257 | G122: 280.200258 | H122: 2.442460965 | I122: 3.375906723 | J122: 33.79245464 | K122: 26.90609153 | L122: 14.0512182 | M122: 266.7350604 | Q122: 12.9471767 | S122: 0
A123: 2083 - Jan | B123: 84 | C123: 300 | D123: 4.212967443 | E123: 0.8067961638 | F123: 135.7005779 | G123: 283.8651285 | H123: 2.436334921 | I123: 3.379346768 | J123: 33.97119535 | K123: 27.1914767 | L123: 14.03190082 | M123: 266.6786807 | Q123: 12.76820086 | S123: 0
A124: 2084 - Jan | B124: 85 | C124: 300 | D124: 4.202440281 | E124: 0.8059266663 | F124: 137.4313385 | G124: 287.5268147 | H124: 2.430228553 | I124: 3.382668408 | J124: 34.14840281 | K124: 27.47590003 | L124: 14.01248956 | M124: 266.6211713 | Q124: 12.59363839 | S124: 0
A125: 2085 - Jan | B125: 86 | C125: 300 | D125: 4.191941093 | E125: 0.8050555323 | F125: 139.1601689 | G125: 291.1852071 | H125: 2.424138864 | I125: 3.385874501 | J125: 34.32410413 | K125: 27.75936695 | L125: 13.99297483 | M125: 266.5625064 | Q125: 12.42331348 | S125: 0
A126: 2086 - Jan | B126: 87 | C126: 300 | D126: 4.181464833 | E126: 0.8041823219 | F126: 140.8870295 | G126: 294.8401944 | H126: 2.418062914 | I126: 3.388967751 | J126: 34.49832541 | K126: 28.04188248 | L126: 13.97334712 | M126: 266.5026608 | Q126: 12.25705913 | S126: 0
A127: 2087 - Jan | B127: 88 | C127: 300 | D127: 4.171006551 | E127: 0.8033065944 | F127: 142.6118798 | G127: 298.4916633 | H127: 2.411997819 | I127: 3.391950719 | J127: 34.67109174 | K127: 28.32345118 | L127: 13.95359696 | M127: 266.4416105 | Q127: 12.09471667 | S127: 0
A128: 2088 - Jan | B128: 89 | C128: 300 | D128: 4.160561389 | E128: 0.8024279075 | F128: 144.334678 | G128: 302.1394988 | H128: 2.405940749 | I128: 3.394825829 | J128: 34.84242732 | K128: 28.60407722 | L128: 13.93371494 | M128: 266.3793326 | Q128: 11.93613519 | S128: 0
A129: 2089 - Jan | B129: 90 | C129: 300 | D129: 4.150124584 | E129: 0.801545818 | F129: 146.0553815 | G129: 305.783584 | H129: 2.399888926 | I129: 3.397595378 | J129: 35.01235542 | K129: 28.88376435 | L129: 13.91369168 | M129: 266.3158053 | Q129: 11.78117112 | S129: 0
A130: 2090 - Jan | B130: 91 | C130: 300 | D130: 4.139691463 | E130: 0.8006598812 | F130: 147.7739463 | G130: 309.4238002 | H130: 2.393839629 | I130: 3.400261541 | J130: 35.18089846 | K130: 29.16251593 | L130: 13.89351789 | M130: 266.2510078 | Q130: 11.62968777 | S130: 0
A131: 2091 - Jan | B131: 92 | C131: 300 | D131: 4.129257443 | E131: 0.7997696511 | F131: 149.4903278 | G131: 313.060027 | H131: 2.387790185 | I131: 3.402826381 | J131: 35.34807804 | K131: 29.44033493 | L131: 13.87318432 | M131: 266.1849208 | Q131: 11.48155494 | S131: 0
A132: 2092 - Jan | B132: 93 | C132: 300 | D132: 4.118818029 | E132: 0.7988746799 | F132: 151.2044798 | G132: 316.6921421 | H132: 2.381737976 | I132: 3.40529185 | J132: 35.51391496 | K132: 29.71722394 | L132: 13.85268179 | M132: 266.117526 | Q132: 11.33664854 | S132: 0
A133: 2093 - Jan | B133: 94 | C133: 300 | D133: 4.108368814 | E133: 0.7979745182 | F133: 152.9163555 | G133: 320.3200212 | H133: 2.375680432 | I133: 3.4076598 | J133: 35.67842928 | K133: 29.99318521 | L133: 13.83200117 | M133: 266.0488067 | Q133: 11.19485025 | S133: 0
A134: 2094 - Jan | B134: 95 | C134: 300 | D134: 4.097905475 | E134: 0.7970687148 | F134: 154.6259068 | G134: 323.9435387 | H134: 2.369615033 | I134: 3.409931986 | J134: 35.84164032 | K134: 30.26822061 | L134: 13.8111334 | M134: 265.9787477 | Q134: 11.05604717 | S134: 0
A135: 2095 - Jan | B135: 96 | C135: 300 | D135: 4.087423776 | E135: 0.7961568163 | F135: 156.3330847 | G135: 327.5625668 | H135: 2.363539311 | I135: 3.41211007 | J135: 36.00356671 | K135: 30.54233167 | L135: 13.79006948 | M135: 265.907335 | Q135: 10.92013156 | S135: 0
A136: 2096 - Jan | B136: 97 | C136: 300 | D136: 4.076919561 | E136: 0.795238367 | F136: 158.0378389 | G136: 331.1769762 | H136: 2.357450842 | I136: 3.41419563 | J136: 36.1642264 | K136: 30.81551959 | L136: 13.76880048 | M136: 265.8345565 | Q136: 10.78700052 | S136: 0
A137: 2097 - Jan | B137: 98 | C137: 300 | D137: 4.06638876 | E137: 0.7943129091 | F137: 159.7401184 | G137: 334.7866358 | H137: 2.351347254 | I137: 3.416190161 | J137: 36.3236367 | K137: 31.08778522 | L137: 13.74731753 | M137: 265.7604016 | Q137: 10.65655572 | S137: 0
A138: 2098 - Jan | B138: 99 | C138: 300 | D138: 4.055827381 | E138: 0.793379982 | F138: 161.4398709 | G138: 338.3914128 | H138: 2.345226219 | I138: 3.418095079 | J138: 36.48181431 | K138: 31.35912911 | L138: 13.72561183 | M138: 265.6848616 | Q138: 10.52870319 | S138: 0
A139: 2099 - Jan | B139: 100 | C139: 300 | D139: 4.045231514 | E139: 0.7924391223 | F139: 163.1370431 | G139: 341.9911727 | H139: 2.339085457 | I139: 3.419911727 | J139: 36.63877533 | K139: 31.62955149 | L139: 13.70367465 | M139: 265.6079296 | Q139: 10.40335308 | S139: 0
O152: =M152/30 -> 0
O153: =M153/30 -> 0
N165: =M165/30 -> 0
P190: =M190/30 -> 0

Sheet Qld Metdata
C2: Database format : | D2: Table format
B12: Note well: the location of the name of the met station - in the case below | L12: This is an example where many years of real climate data are given.
B13: "mean data" - is critical: It must appear above the heading of the month | L13: The column headed "year" has the year in the rows for January -
B14: column in the table of climate data. | L14: it is not needed in other rows.
A17: Station = | B17: Mean data | K17: Station = | L17: Yearly data
A18: Year | B18: Month | C18: Tmax | D18: Tmin | E18: Rain | F18: Pan evap | G18: Solar rad | H18: Rain Days | I18: Frost Days | K18: Year | L18: Month | M18: Tmax | N18: Tmin | O18: Rain | P18: Pan evap | Q18: Solar rad | R18: Rain Days | S18: Frost Days
B19: Jan | C19: 30.11666667 | D19: 19.36666667 | E19: 113.7833333 | F19: 5.993333333 | G19: 22.55913978 | H19: 0 | I19: 0 | K19: 1986 | L19: Jan | M19: 30.11666667 | N19: 19.36666667 | O19: 106.4524 | P19: 5.993333333 | Q19: 22.55913978 | R19: 0 | S19: 0
B20: Feb | C20: 29.70833333 | D20: 19.51666667 | E20: 180.3166667 | F20: 4.708333333 | G20: 20.16502463 | H20: 0 | I20: 0 | K20: 1986 | L20: Feb | M20: 29.70833333 | N20: 19.51666667 | O20: 167.714 | P20: 4.708333333 | Q20: 20.16502463 | R20: 0 | S20: 0
B21: March | C21: 28.33333333 | D21: 17.51666667 | E21: 174.7166667 | F21: 4.65 | G21: 18.97043011 | H21: 0 | I21: 0 | K21: 1986 | L21: March | M21: 28.33333333 | N21: 17.51666667 | O21: 428.9048 | P21: 4.65 | Q21: 18.97043011 | R21: 0 | S21: 0
B22: April | C22: 26.49305556 | D22: 15.35277778 | E22: 136.8333333 | F22: 3.7 | G22: 15.54166667 | H22: 0 | I22: 0 | K22: 1986 | L22: April | M22: 26.49305556 | N22: 15.35277778 | O22: 322.6 | P22: 3.7 | Q22: 15.54166667 | R22: 0 | S22: 0
B23: May | C23: 24.10698925 | D23: 13.19435484 | E23: 119.75 | F23: 2.79 | G23: 12.62903226 | H23: 0 | I23: 0 | K23: 1986 | L23: May | M23: 24.10698925 | N23: 13.19435484 | O23: 242 | P23: 2.79 | Q23: 12.62903226 | R23: 0 | S23: 0
B24: June | C24: 21.87777778 | D24: 8.616666667 | E24: 63.71666667 | F24: 2.4 | G24: 12.43333333 | H24: 0 | I24: 0 | K24: 1986 | L24: June | M24: 21.87777778 | N24: 8.616666667 | O24: 52.9 | P24: 2.4 | Q24: 12.43333333 | R24: 0 | S24: 0
B25: July | C25: 21.24623656 | D25: 7.22983871 | E25: 64.51666667 | F25: 2.48 | G25: 13.25537634 | H25: 0 | I25: 0 | K25: 1986 | L25: July | M25: 21.24623656 | N25: 7.22983871 | O25: 60.2324 | P25: 2.48 | Q25: 13.25537634 | R25: 0 | S25: 0
B26: Aug | C26: 22.51370968 | D26: 7.122849462 | E26: 50.15833333 | F26: 3.306666667 | G26: 16.46505376 | H26: 0 | I26: 0 | K26: 1986 | L26: Aug | M26: 22.51370968 | N26: 7.122849462 | O26: 208.2705 | P26: 3.306666667 | Q26: 16.46505376 | R26: 0 | S26: 0
B27: Sep | C27: 25.25277778 | D27: 9.95 | E27: 32.7 | F27: 4.3 | G27: 20.14166667 | H27: 0 | I27: 0 | K27: 1986 | L27: Sep | M27: 25.25277778 | N27: 9.95 | O27: 233.2374 | P27: 4.3 | Q27: 20.14166667 | R27: 0 | S27: 0
B28: Oct | C28: 27.29623656 | D28: 13.89946237 | E28: 68.33333333 | F28: 5.27 | G28: 21.66666667 | H28: 0 | I28: 0 | K28: 1986 | L28: Oct | M28: 27.29623656 | N28: 13.89946237 | O28: 321.9428 | P28: 5.27 | Q28: 21.66666667 | R28: 0 | S28: 0
B29: Nov | C29: 28.825 | D29: 16.91527778 | E29: 94.80833333 | F29: 5.6 | G29: 22.86111111 | H29: 0 | I29: 0 | K29: 1986 | L29: Nov | M29: 28.825 | N29: 16.91527778 | O29: 222.2639 | P29: 5.6 | Q29: 22.86111111 | R29: 0 | S29: 0
B30: Dec | C30: 29.7188172 | D30: 18.32715054 | E30: 136.5583333 | F30: 6.406666667 | G30: 22.76344086 | H30: 0 | I30: 0 | K30: 1986 | L30: Dec | M30: 29.7188172 | N30: 18.32715054 | O30: 123.7339 | P30: 6.406666667 | Q30: 22.76344086 | R30: 0 | S30: 0
E31: =SUM(E19:E30) -> 1236.191667 | K31: =K19+1 -> 1987 | L31: =L19 -> Jan | M31: 30.11666667 | N31: 19.36666667 | O31: 168.1816 | P31: 5.993333333 | Q31: 22.55913978 | R31: 0 | S31: 0
L32: Feb | M32: 29.70833333 | N32: 19.51666667 | O32: 242.5216 | P32: 4.708333333 | Q32: 20.16502463 | R32: 0 | S32: 0
L33: March | M33: 28.33333333 | N33: 17.51666667 | O33: 364.0407 | P33: 4.65 | Q33: 18.97043011 | R33: 0 | S33: 0
L34: April | M34: 26.49305556 | N34: 15.35277778 | O34: 352.3 | P34: 3.7 | Q34: 15.54166667 | R34: 0 | S34: 0
L35: May | M35: 24.10698925 | N35: 13.19435484 | O35: 133.9 | P35: 2.79 | Q35: 12.62903226 | R35: 0 | S35: 0
L36: June | M36: 21.87777778 | N36: 8.616666667 | O36: 171.6 | P36: 2.4 | Q36: 12.43333333 | R36: 0 | S36: 0
L37: July | M37: 21.24623656 | N37: 7.22983871 | O37: 205.2 | P37: 2.48 | Q37: 13.25537634 | R37: 0 | S37: 0
L38: Aug | M38: 22.51370968 | N38: 7.122849462 | O38: 160.78 | P38: 3.306666667 | Q38: 16.46505376 | R38: 0 | S38: 0
L39: Sep | M39: 25.25277778 | N39: 9.95 | O39: 78.4601 | P39: 4.3 | Q39: 20.14166667 | R39: 0 | S39: 0
L40: Oct | M40: 27.29623656 | N40: 13.89946237 | O40: 173.916 | P40: 5.27 | Q40: 21.66666667 | R40: 0 | S40: 0
L41: Nov | M41: 28.825 | N41: 16.91527778 | O41: 257.9127 | P41: 5.6 | Q41: 22.86111111 | R41: 0 | S41: 0
L42: Dec | M42: 29.7188172 | N42: 18.32715054 | O42: 355.8705 | P42: 6.406666667 | Q42: 22.76344086 | R42: 0 | S42: 0
K43: =K31+1 -> 1988 | L43: Jan | M43: 30.11666667 | N43: 19.36666667 | O43: 106.4524 | P43: 5.993333333 | Q43: 22.55913978 | R43: 0 | S43: 0
L44: Feb | M44: 29.70833333 | N44: 19.51666667 | O44: 167.714 | P44: 4.708333333 | Q44: 20.16502463 | R44: 0 | S44: 0
L45: March | M45: 28.33333333 | N45: 17.51666667 | O45: 428.9048 | P45: 4.65 | Q45: 18.97043011 | R45: 0 | S45: 0
L46: April | M46: 26.49305556 | N46: 15.35277778 | O46: 322.6 | P46: 3.7 | Q46: 15.54166667 | R46: 0 | S46: 0
L47: May | M47: 24.10698925 | N47: 13.19435484 | O47: 242 | P47: 2.79 | Q47: 12.62903226 | R47: 0 | S47: 0
L48: June | M48: 21.87777778 | N48: 8.616666667 | O48: 52.9 | P48: 2.4 | Q48: 12.43333333 | R48: 0 | S48: 0
L49: July | M49: 21.24623656 | N49: 7.22983871 | O49: 60.2324 | P49: 2.48 | Q49: 13.25537634 | R49: 0 | S49: 0
L50: Aug | M50: 22.51370968 | N50: 7.122849462 | O50: 208.2705 | P50: 3.306666667 | Q50: 16.46505376 | R50: 0 | S50: 0
L51: Sep | M51: 25.25277778 | N51: 9.95 | O51: 233.2374 | P51: 4.3 | Q51: 20.14166667 | R51: 0 | S51: 0
L52: Oct | M52: 27.29623656 | N52: 13.89946237 | O52: 321.9428 | P52: 5.27 | Q52: 21.66666667 | R52: 0 | S52: 0
L53: Nov | M53: 28.825 | N53: 16.91527778 | O53: 222.2639 | P53: 5.6 | Q53: 22.86111111 | R53: 0 | S53: 0
L54: Dec | M54: 29.7188172 | N54: 18.32715054 | O54: 123.7339 | P54: 6.406666667 | Q54: 22.76344086 | R54: 0 | S54: 0
K55: =K43+1 -> 1989 | L55: Jan | M55: 30.11666667 | N55: 19.36666667 | O55: 316.9106 | P55: 5.993333333 | Q55: 22.55913978 | R55: 0 | S55: 0
L56: Feb | M56: 29.70833333 | N56: 19.51666667 | O56: 519.9798 | P56: 4.708333333 | Q56: 20.16502463 | R56: 0 | S56: 0
L57: March | M57: 28.33333333 | N57: 17.51666667 | O57: 305.466 | P57: 4.65 | Q57: 18.97043011 | R57: 0 | S57: 0
L58: April | M58: 26.49305556 | N58: 15.35277778 | O58: 230.6 | P58: 3.7 | Q58: 15.54166667 | R58: 0 | S58: 0
L59: May | M59: 24.10698925 | N59: 13.19435484 | O59: 172.1 | P59: 2.79 | Q59: 12.62903226 | R59: 0 | S59: 0
L60: June | M60: 21.87777778 | N60: 8.616666667 | O60: 127.6 | P60: 2.4 | Q60: 12.43333333 | R60: 0 | S60: 0
L61: July | M61: 21.24623656 | N61: 7.22983871 | O61: 41.5 | P61: 2.48 | Q61: 13.25537634 | R61: 0 | S61: 0
L62: Aug | M62: 22.51370968 | N62: 7.122849462 | O62: 113.0006 | P62: 3.306666667 | Q62: 16.46505376 | R62: 0 | S62: 0
L63: =L51 -> Sep | M63: 25.25277778 | N63: 9.95 | O63: 244.6376 | P63: 4.3 | Q63: 20.14166667 | R63: 0 | S63: 0
L64: Oct | M64: 27.29623656 | N64: 13.89946237 | O64: 274.4125 | P64: 5.27 | Q64: 21.66666667 | R64: 0 | S64: 0
L65: Nov | M65: 28.825 | N65: 16.91527778 | O65: 245.5198 | P65: 5.6 | Q65: 22.86111111 | R65: 0 | S65: 0
L66: Dec | M66: 29.7188172 | N66: 18.32715054 | O66: 392.2888 | P66: 6.406666667 | Q66: 22.76344086 | R66: 0 | S66: 0
K67: =K55+1 -> 1990 | L67: Jan | M67: 30.11666667 | N67: 19.36666667 | O67: 192.6025 | P67: 5.993333333 | Q67: 22.55913978 | R67: 0 | S67: 0
L68: Feb | M68: 29.70833333 | N68: 19.51666667 | O68: 201.981 | P68: 4.708333333 | Q68: 20.16502463 | R68: 0 | S68: 0
L69: March | M69: 28.33333333 | N69: 17.51666667 | O69: 226.7494 | P69: 4.65 | Q69: 18.97043011 | R69: 0 | S69: 0
L70: April | M70: 26.49305556 | N70: 15.35277778 | O70: 86.26 | P70: 3.7 | Q70: 15.54166667 | R70: 0 | S70: 0
L71: May | M71: 24.10698925 | N71: 13.19435484 | O71: 134.614 | P71: 2.79 | Q71: 12.62903226 | R71: 0 | S71: 0
L72: June | M72: 21.87777778 | N72: 8.616666667 | O72: 18.3 | P72: 2.4 | Q72: 12.43333333 | R72: 0 | S72: 0
L73: July | M73: 21.24623656 | N73: 7.22983871 | O73: 28 | P73: 2.48 | Q73: 13.25537634 | R73: 0 | S73: 0
L74: Aug | M74: 22.51370968 | N74: 7.122849462 | O74: 66.645 | P74: 3.306666667 | Q74: 16.46505376 | R74: 0 | S74: 0
L75: Sep | M75: 25.25277778 | N75: 9.95 | O75: 250.3421 | P75: 4.3 | Q75: 20.14166667 | R75: 0 | S75: 0
L76: Oct | M76: 27.29623656 | N76: 13.89946237 | O76: 180.5064 | P76: 5.27 | Q76: 21.66666667 | R76: 0 | S76: 0
L77: Nov | M77: 28.825 | N77: 16.91527778 | O77: 146.6615 | P77: 5.6 | Q77: 22.86111111 | R77: 0 | S77: 0
L78: Dec | M78: 29.7188172 | N78: 18.32715054 | O78: 330.82 | P78: 6.406666667 | Q78: 22.76344086 | R78: 0 | S78: 0
K79: =K67+1 -> 1991 | L79: Jan | M79: 30.11666667 | N79: 19.36666667 | O79: 261.3016 | P79: 5.993333333 | Q79: 22.55913978 | R79: 0 | S79: 0
L80: Feb | M80: 29.70833333 | N80: 19.51666667 | O80: 537.8 | P80: 4.708333333 | Q80: 20.16502463 | R80: 0 | S80: 0
L81: March | M81: 28.33333333 | N81: 17.51666667 | O81: 494.3 | P81: 4.65 | Q81: 18.97043011 | R81: 0 | S81: 0
L82: April | M82: 26.49305556 | N82: 15.35277778 | O82: 66.2 | P82: 3.7 | Q82: 15.54166667 | R82: 0 | S82: 0
L83: May | M83: 24.10698925 | N83: 13.19435484 | O83: 136.2 | P83: 2.79 | Q83: 12.62903226 | R83: 0 | S83: 0
L84: June | M84: 21.87777778 | N84: 8.616666667 | O84: 21 | P84: 2.4 | Q84: 12.43333333 | R84: 0 | S84: 0
L85: July | M85: 21.24623656 | N85: 7.22983871 | O85: 75.74 | P85: 2.48 | Q85: 13.25537634 | R85: 0 | S85: 0
L86: Aug | M86: 22.51370968 | N86: 7.122849462 | O86: 156.86 | P86: 3.306666667 | Q86: 16.46505376 | R86: 0 | S86: 0
L87: Sep | M87: 25.25277778 | N87: 9.95 | O87: 104.94 | P87: 4.3 | Q87: 20.14166667 | R87: 0 | S87: 0
L88: Oct | M88: 27.29623656 | N88: 13.89946237 | O88: 180.5233 | P88: 5.27 | Q88: 21.66666667 | R88: 0 | S88: 0
L89: Nov | M89: 28.825 | N89: 16.91527778 | O89: 116.963 | P89: 5.6 | Q89: 22.86111111 | R89: 0 | S89: 0
L90: Dec | M90: 29.7188172 | N90: 18.32715054 | O90: 119.2 | P90: 6.406666667 | Q90: 22.76344086 | R90: 0 | S90: 0
K91: =K79+1 -> 1992 | L91: Jan | M91: 30.11666667 | N91: 19.36666667 | O91: 177.3639 | P91: 5.993333333 | Q91: 22.55913978 | R91: 0 | S91: 0
L92: Feb | M92: 29.70833333 | N92: 19.51666667 | O92: 210.0166 | P92: 4.708333333 | Q92: 20.16502463 | R92: 0 | S92: 0
L93: March | M93: 28.33333333 | N93: 17.51666667 | O93: 169.873 | P93: 4.65 | Q93: 18.97043011 | R93: 0 | S93: 0
L94: April | M94: 26.49305556 | N94: 15.35277778 | O94: 243.1981 | P94: 3.7 | Q94: 15.54166667 | R94: 0 | S94: 0
L95: =L83 -> May | M95: 24.10698925 | N95: 13.19435484 | O95: 39.5 | P95: 2.79 | Q95: 12.62903226 | R95: 0 | S95: 0
L96: June | M96: 21.87777778 | N96: 8.616666667 | O96: 113.4282 | P96: 2.4 | Q96: 12.43333333 | R96: 0 | S96: 0
L97: July | M97: 21.24623656 | N97: 7.22983871 | O97: 129.7645 | P97: 2.48 | Q97: 13.25537634 | R97: 0 | S97: 0
L98: Aug | M98: 22.51370968 | N98: 7.122849462 | O98: 174.465 | P98: 3.306666667 | Q98: 16.46505376 | R98: 0 | S98: 0
L99: Sep | M99: 25.25277778 | N99: 9.95 | O99: 92.8997 | P99: 4.3 | Q99: 20.14166667 | R99: 0 | S99: 0
L100: Oct | M100: 27.29623656 | N100: 13.89946237 | O100: 180.924 | P100: 5.27 | Q100: 21.66666667 | R100: 0 | S100: 0
L101: Nov | M101: 28.825 | N101: 16.91527778 | O101: 139.1 | P101: 5.6 | Q101: 22.86111111 | R101: 0 | S101: 0
L102: Dec | M102: 29.7188172 | N102: 18.32715054 | O102: 183.2147 | P102: 6.406666667 | Q102: 22.76344086 | R102: 0 | S102: 0
K103: =K91+1 -> 1993 | L103: Jan | M103: 30.11666667 | N103: 19.36666667 | O103: 202.4559286 | P103: 5.993333333 | Q103: 22.55913978 | R103: 0 | S103: 0
L104: Feb | M104: 29.70833333 | N104: 19.51666667 | O104: 165.6 | P104: 4.708333333 | Q104: 20.16502463 | R104: 0 | S104: 0
L105: March | M105: 28.33333333 | N105: 17.51666667 | O105: 289.922 | P105: 4.65 | Q105: 18.97043011 | R105: 0 | S105: 0
L106: April | M106: 26.49305556 | N106: 15.35277778 | O106: 156.5 | P106: 3.7 | Q106: 15.54166667 | R106: 0 | S106: 0
L107: May | M107: 24.10698925 | N107: 13.19435484 | O107: 40 | P107: 2.79 | Q107: 12.62903226 | R107: 0 | S107: 0
L108: June | M108: 21.87777778 | N108: 8.616666667 | O108: 45 | P108: 2.4 | Q108: 12.43333333 | R108: 0 | S108: 0
L109: July | M109: 21.24623656 | N109: 7.22983871 | O109: 38.4 | P109: 2.48 | Q109: 13.25537634 | R109: 0 | S109: 0
L110: Aug | M110: 22.51370968 | N110: 7.122849462 | O110: 17.9 | P110: 3.306666667 | Q110: 16.46505376 | R110: 0 | S110: 0
L111: Sep | M111: 25.25277778 | N111: 9.95 | O111: 16.3 | P111: 4.3 | Q111: 20.14166667 | R111: 0 | S111: 0
L112: Oct | M112: 27.29623656 | N112: 13.89946237 | O112: 42.1 | P112: 5.27 | Q112: 21.66666667 | R112: 0 | S112: 0
L113: Nov | M113: 28.825 | N113: 16.91527778 | O113: 39.5 | P113: 5.6 | Q113: 22.86111111 | R113: 0 | S113: 0
L114: Dec | M114: 29.7188172 | N114: 18.32715054 | O114: 114.4 | P114: 6.406666667 | Q114: 22.76344086 | R114: 0 | S114: 0
K115: =K103+1 -> 1994 | L115: Jan | M115: 30.11666667 | N115: 19.36666667 | O115: 74.8 | P115: 5.993333333 | Q115: 22.55913978 | R115: 0 | S115: 0
L116: Feb | M116: 29.70833333 | N116: 19.51666667 | O116: 394.7 | P116: 4.708333333 | Q116: 20.16502463 | R116: 0 | S116: 0
L117: March | M117: 28.33333333 | N117: 17.51666667 | O117: 134.7 | P117: 4.65 | Q117: 18.97043011 | R117: 0 | S117: 0
L118: April | M118: 26.49305556 | N118: 15.35277778 | O118: 62.8 | P118: 3.7 | Q118: 15.54166667 | R118: 0 | S118: 0
L119: May | M119: 24.10698925 | N119: 13.19435484 | O119: 86.8 | P119: 2.79 | Q119: 12.62903226 | R119: 0 | S119: 0
L120: June | M120: 21.87777778 | N120: 8.616666667 | O120: 43.6 | P120: 2.4 | Q120: 12.43333333 | R120: 0 | S120: 0
L121: July | M121: 21.24623656 | N121: 7.22983871 | O121: 18.8 | P121: 2.48 | Q121: 13.25537634 | R121: 0 | S121: 0
L122: Aug | M122: 22.51370968 | N122: 7.122849462 | O122: 27.6 | P122: 3.306666667 | Q122: 16.46505376 | R122: 0 | S122: 0
L123: Sep | M123: 25.25277778 | N123: 9.95 | O123: 42.4 | P123: 4.3 | Q123: 20.14166667 | R123: 0 | S123: 0
L124: Oct | M124: 27.29623656 | N124: 13.89946237 | O124: 106 | P124: 5.27 | Q124: 21.66666667 | R124: 0 | S124: 0
L125: Nov | M125: 28.825 | N125: 16.91527778 | O125: 203.7 | P125: 5.6 | Q125: 22.86111111 | R125: 0 | S125: 0
L126: Dec | M126: 29.7188172 | N126: 18.32715054 | O126: 132.7 | P126: 6.406666667 | Q126: 22.76344086 | R126: 0 | S126: 0
K127: =K115+1 -> 1995 | L127: =L115 -> Jan | M127: 30.11666667 | N127: 19.36666667 | O127: 271.1 | P127: 5.993333333 | Q127: 22.55913978 | R127: 0 | S127: 0
L128: Feb | M128: 29.70833333 | N128: 19.51666667 | O128: 61.6 | P128: 4.708333333 | Q128: 20.16502463 | R128: 0 | S128: 0
L129: March | M129: 28.33333333 | N129: 17.51666667 | O129: 42.3 | P129: 4.65 | Q129: 18.97043011 | R129: 0 | S129: 0
L130: April | M130: 26.49305556 | N130: 15.35277778 | O130: 79.6 | P130: 3.7 | Q130: 15.54166667 | R130: 0 | S130: 0
L131: May | M131: 24.10698925 | N131: 13.19435484 | O131: 172.4 | P131: 2.79 | Q131: 12.62903226 | R131: 0 | S131: 0
L132: June | M132: 21.87777778 | N132: 8.616666667 | O132: 76.8 | P132: 2.4 | Q132: 12.43333333 | R132: 0 | S132: 0
L133: July | M133: 21.24623656 | N133: 7.22983871 | O133: 25 | P133: 2.48 | Q133: 13.25537634 | R133: 0 | S133: 0
L134: Aug | M134: 22.51370968 | N134: 7.122849462 | O134: 25.8 | P134: 3.306666667 | Q134: 16.46505376 | R134: 0 | S134: 0
L135: Sep | M135: 25.25277778 | N135: 9.95 | O135: 26.2 | P135: 4.3 | Q135: 20.14166667 | R135: 0 | S135: 0
L136: Oct | M136: 27.29623656 | N136: 13.89946237 | O136: 73.4 | P136: 5.27 | Q136: 21.66666667 | R136: 0 | S136: 0
L137: Nov | M137: 28.825 | N137: 16.91527778 | O137: 96.2 | P137: 5.6 | Q137: 22.86111111 | R137: 0 | S137: 0
L138: Dec | M138: 29.7188172 | N138: 18.32715054 | O138: 124.4 | P138: 6.406666667 | Q138: 22.76344086 | R138: 0 | S138: 0
K139: =K127+1 -> 1996 | L139: Jan | M139: 30.11666667 | N139: 19.36666667 | O139: 223.9 | P139: 5.993333333 | Q139: 22.55913978 | R139: 0 | S139: 0
L140: Feb | M140: 29.70833333 | N140: 19.51666667 | O140: 131.8 | P140: 4.708333333 | Q140: 20.16502463 | R140: 0 | S140: 0
L141: March | M141: 28.33333333 | N141: 17.51666667 | O141: 93.2 | P141: 4.65 | Q141: 18.97043011 | R141: 0 | S141: 0
L142: April | M142: 26.49305556 | N142: 15.35277778 | O142: 103.3 | P142: 3.7 | Q142: 15.54166667 | R142: 0 | S142: 0
L143: May | M143: 24.10698925 | N143: 13.19435484 | O143: 150.3 | P143: 2.79 | Q143: 12.62903226 | R143: 0 | S143: 0
L144: June | M144: 21.87777778 | N144: 8.616666667 | O144: 42.5 | P144: 2.4 | Q144: 12.43333333 | R144: 0 | S144: 0
L145: July | M145: 21.24623656 | N145: 7.22983871 | O145: 49.9 | P145: 2.48 | Q145: 13.25537634 | R145: 0 | S145: 0
L146: Aug | M146: 22.51370968 | N146: 7.122849462 | O146: 21.1 | P146: 3.306666667 | Q146: 16.46505376 | R146: 0 | S146: 0
L147: Sep | M147: 25.25277778 | N147: 9.95 | O147: 46.8 | P147: 4.3 | Q147: 20.14166667 | R147: 0 | S147: 0
L148: Oct | M148: 27.29623656 | N148: 13.89946237 | O148: 51.3 | P148: 5.27 | Q148: 21.66666667 | R148: 0 | S148: 0
L149: Nov | M149: 28.825 | N149: 16.91527778 | O149: 113.3 | P149: 5.6 | Q149: 22.86111111 | R149: 0 | S149: 0
L150: Dec | M150: 29.7188172 | N150: 18.32715054 | O150: 124.4 | P150: 6.406666667 | Q150: 22.76344086 | R150: 0 | S150: 0
